Workbook

Sheet تفاصيل المعادلة (hidden)
A1: النوع | B1: النوع | C1: العرض | D1: العمق | E1: الارتفاع | F1: العدد | G1: كمية المساحة | H1: الكلفة | I1: الأجمالي
A2: جوانب | B2: AB | C2: 56 | D2: 0.56 | E2: 0.75 | F2: 2 | G2: =IF(A2="جوانب";D2*E2*F2;IF(A2="القاعدة";C2*D2*F2;IF(A2="الرف";C2*D2*F2;IF(A2="المسطرة";C2*E2*F2;"")))) | H2: 16.33 | I2: =H2*G2 -> 
A3: القاعدة | B3: AB | C3: 0.964 | D3: 0.56 | E3: 0.75 | F3: 1 | H3: 16.33 | I3: =H3*G3 -> 0
A4: الرف | B4: AB | C4: 0.964 | D4: 0.54 | F4: 1 | G4: =C4*D4*F4 -> 0.52056 | H4: 16.33 | I4: 8.5007448
A5: المسطرة | B5: AB | C5: 0.964 | E5: 0.12 | F5: 2 | G5: =C5*E5*F5 -> 0.23136 | H5: 16.33 | I5: 3.7781088
G11: =SUM(G2:G10) -> 0.75192

Sheet المعلومات
A1: التاريخ | B1: رقم الأمر | C1: الجهة | D1: اسم الزبون | E1: النوع | F1: الملاحظات | G1: كود المصنع | H1: تكلفة الفاتورة | I1: عدد الأمتار | J1: واقع الحال | K1: التلف | L1: سعر الكلفة | M1: صافي الربح | N1: تاريخ التصعيد | O1: المبلغ | P1: =SUBTOTAL(9,$H:$H:$H:$H) -> 8004.3 | Q1: العدد | R1: =SUBTOTAL(2,$H:$H:$H:$H) -> 16 | S1: =TODAY() -> 2018-03-30 | T1: الأمتار | U1: =SUBTOTAL(9,$I:$I:$I:$I) -> 73.2
A2: 2018-01-01 | B2: 1 | C2: شركة بهار | D2: عماد احمد x10 | E2: ابواب | G2: AB35-AB14 | H2: 1718 | I2: 20.68 | M2: =H2-J2-K2-L2 -> 1718 | N2: 2018-01-01 | S2: =TODAY() -> 2018-03-30
A3: 2018-01-01 | B3: 1 | C3: شركة بهار | D3: عماد احمد x10 | E3: كابينات | G3: KH3 | H3: 334 | M3: =H3-J3-K3-L3 -> 334 | N3: 2018-01-01 | S3: 2018-03-30
A4: 2018-01-01 | B4: 1 | C4: شركة بهار | D4: عماد احمد x10 | E4: كورين | G4: F1 | H4: 1406 | I4: 7.98 | M4: 1406 | N4: 2018-01-03 | S4: 2018-03-30
A5: 2018-01-01 | B5: 2 | C5: شركة بهار | D5: حيدر كريم كاطع Z54 | E5: كابينات | G5: KH1 | H5: 52 | M5: 52 | N5: 2018-01-03 | S5: 2018-03-30
A6: 2018-01-01 | B6: 3 | C6: شركة بهار | D6: عباس قاسم علي | E6: ابواب | G6: AB1 | H6: 763 | I6: 15.43 | M6: 763 | N6: 2018-01-03 | S6: 2018-03-30
A7: 2018-01-01 | B7: 3 | C7: شركة بهار | D7: عباس قاسم علي | E7: كابينات | G7: KH2 | H7: 23 | M7: 23 | N7: 2018-01-09 | S7: 2018-03-30
A8: 2018-01-01 | B8: 3 | C8: شركة بهار | D8: عباس قاسم علي | E8: كوارتز | G8: CD3 | H8: 1041 | I8: 8.01 | M8: 1041 | N8: 2018-01-09 | S8: 2018-03-30
A9: 2018-01-03 | B9: 4 | C9: شركة بهار | D9: مهند علاء Z66 | E9: ابواب | G9: AB15 | H9: 116 | I9: 2.76 | M9: 116 | N9: 2018-01-09 | S9: 2018-03-30
A10: 2018-01-03 | B10: 4 | C10: شركة بهار | D10: مهند علاء Z66 | E10: كابينات | G10: KH4 | H10: 20 | M10: 20 | N10: 2018-01-10 | S10: 2018-03-30
A11: 2018-01-03 | B11: 4 | C11: شركة بهار | D11: مهند علاء Z66 | E11: كوارتز | G11: CD4 | H11: 173.3 | I11: 2.31 | M11: 173.3 | N11: 2018-01-02 | S11: 2018-03-30
A12: 2018-01-02 | B12: 5 | C12: معرض الأسكان | D12: محمد | E12: كابينات | G12: KH6 | H12: 83 | M12: 83 | N12: 2018-01-02 | S12: 2018-03-30
A13: 2018-01-01 | B13: 6 | C13: شركة ايفا | D13: kc 40 المعرض | E13: كابينات | G13: KH7 | H13: 86 | M13: 86 | N13: 2018-01-03 | S13: 2018-03-30
A14: 2018-01-01 | B14: 7 | C14: شركة بهار | D14: يوناميD 2/2 | E14: كورين | G14: F 16 | H14: 1315 | I14: 6.74 | M14: 1315 | N14: 2018-01-03 | S14: 2018-03-30
A15: 2018-01-03 | B15: 7 | C15: شركة بهار | D15: يوناميD 2/2 | E15: ابواب | G15: AB 29 | H15: 362 | I15: 5.59 | M15: 362 | N15: 2018-01-07 | S15: 2018-03-30
A16: 2018-01-03 | B16: 7 | C16: شركة بهار | D16: يوناميD 2/2 | E16: كابينات | G16: KH 8 | H16: 337 | M16: 337 | N16: 2018-01-07 | S16: 2018-03-30
A17: 2018-01-03 | B17: 8 | C17: شركة بهار | D17: رعد مظلوم Z 68 | E17: ابواب | G17: AB 25 | H17: 175 | I17: 3.7 | M17: 175 | N17: 2018-01-07 | S17: 2018-03-30

Sheet البيانات
B1: ت | C1: قياس الكابينة | D1: MDFنوع الخشب | E1: شريط PVC | F1: ظهر( طبقة الفايبر) | G1: مسند بلاستك | H1: سعر MDF | I1: سعر PVC | J1: سعر الظهر | K1: سعر المسند | L1: مواد تشغيل | M1: الأجمالي | V1: =INDEX(MyFindData,SMALL(IF(ISNUMBER(SEARCH(FindText,MyFindData)),ROW(MyFindData),""),ROW())-ROW(INDEX(MyFindData,1,1))+1) -> AW 50*33*90
A2: =COUNTIF($C:$C,C2) -> 1 | B2: 1 | C2: AB 100*56*75 | D2: 2.1 | E2: 14.8 | F2: 0.63 | G2: 4 | M2: =SUM(H2:L2) -> 0
A3: 1 | B3: 2 | C3: AB 90*56*75 | D3: 1.99 | E3: 13.92 | F3: 0.57 | G3: 7 | M3: =SUM(H3:L3) -> 0
A4: 1 | B4: 3 | C4: AB 80*56*75 | D4: 1.85 | E4: 13.12 | F4: 0.5 | G4: 6 | M4: 0
A5: 1 | B5: 4 | C5: AB 75*56*75 | D5: 1.85 | E5: 13.12 | F5: 0.5 | G5: 4 | M5: 0
A6: 1 | B6: 5 | C6: AB 70*56*75 | D6: 1.72 | E6: 12.32 | F6: 0.44 | G6: 4 | M6: 0
A7: 1 | B7: 6 | C7: AB 60*56*75 | D7: 1.59 | E7: 11.52 | F7: 0.37 | G7: 7 | M7: 0
A8: 1 | B8: 7 | C8: AB 50*56*75 | D8: 1.45 | E8: 10.72 | F8: 0.31 | G8: 4 | M8: 0
A9: 1 | B9: 8 | C9: AB 45*56*75 | D9: 1.39 | E9: 10.32 | F9: 0.27 | G9: 7 | M9: 0
A10: 1 | B10: 9 | C10: AB 40*56*75 | D10: 1.25 | E10: 9.92 | F10: 0.24 | G10: 4 | M10: 0
A11: 1 | B11: 10 | C11: AB 35*56*75 | D11: 1.22 | E11: 9.52 | F11: 0.22 | G11: 4 | M11: 0
A12: 1 | B12: 11 | C12: AB 30*56*75 | D12: 1.19 | E12: 9.12 | F12: 0.21 | G12: 4 | M12: 0
A13: 1 | B13: 12 | C13: AB 25*56*75 | G13: 5 | M13: 0
A14: 1 | B14: 13 | C14: AB 20*56*75 | D14: 1.05 | E14: 8.32 | F14: 0.18 | G14: 4 | M14: 0
A15: 1 | B15: 14 | C15: AB 15*56*75 | D15: 1 | E15: 8 | F15: 0.18 | G15: 5 | M15: 0
A16: 1 | B16: 15 | C16: ASB 100*56*75 | D16: 1.78 | E16: 14.8 | F16: 0.63 | G16: 5 | M16: 0
A17: 1 | B17: 16 | C17: ASB 90*56*75 | D17: 1.68 | E17: 13.92 | F17: 0.57 | G17: 51 | M17: 0
A18: 1 | B18: 17 | C18: AOB 90*56*75 | D18: 1.88 | E18: 13.92 | F18: 0.57 | G18: 4 | M18: 0
A19: 1 | B19: 18 | C19: AOB 60*56*75 | D19: 1.52 | E19: 11.52 | F19: 0.37 | G19: 4 | M19: 0
A20: 1 | B20: 19 | C20: ABC 90*90*56*75 | D20: 3.3 | E20: 17 | F20: 1.28 | G20: 5 | M20: 0
A21: 1 | B21: 20 | C21: ABB110*56*75 | D21: 2.63 | E21: 19.2 | F21: 0.79 | G21: 4 | M21: 0
A22: 1 | B22: 21 | C22: ABB 105*56*75 | D22: 2.19 | E22: 16 | F22: 0.66 | G22: 4 | M22: 0
A23: 1 | B23: 22 | C23: ABB 100*56*75 | G23: 4 | M23: 0
A24: 1 | B24: 23 | C24: ABM 40*56*75 | D24: 1.22 | E24: 9.52 | F24: 0.22 | M24: 0
A25: 1 | B25: 24 | C25: ATBC 90*90*56*75 | M25: 0
A26: 1 | B26: 25 | C26: AW 100*33*75 | D26: 1.38 | E26: 11.2 | F26: 0.71 | G26: 4 | M26: 0
A27: 1 | B27: 26 | C27: AW 90*33*75 | D27: 1.28 | E27: 10.6 | F27: 0.64 | G27: 5 | M27: 0
A28: 1 | B28: 27 | C28: AW 80*33*75 | D28: 1.19 | E28: 10.04 | F28: 0.56 | G28: 5 | M28: 0
A29: 1 | B29: 28 | C29: AW 75*33*75 | D29: 1.19 | E29: 10.04 | F29: 0.56 | G29: 4 | M29: 0
A30: 1 | B30: 29 | C30: AW 70*33*75 | D30: 1.09 | E30: 9.42 | F30: 0.49 | G30: 4 | M30: 0
A31: 1 | B31: 30 | C31: AW 60*33*75 | D31: 1 | E31: 8.8 | F31: 0.42 | G31: 4 | M31: 0
A32: 1 | B32: 31 | C32: AW 50*33*75 | D32: 0.91 | E32: 8.2 | F32: 0.35 | G32: 5 | M32: 0
A33: 1 | B33: 32 | C33: AW 45*33*75 | D33: 0.86 | E33: 7.92 | F33: 0.31 | G33: 4 | M33: 0
A34: 1 | B34: 33 | C34: AW 40*33*75 | D34: 0.82 | E34: 7.6 | F34: 0.27 | G34: 14 | M34: 0
A35: 1 | B35: 34 | C35: AW 35*33*75 | D35: 0.77 | E35: 7.3 | F35: 0.24 | G35: 6 | M35: 0
A36: 1 | B36: 35 | C36: AW 30*33*75 | D36: 0.72 | E36: 7 | F36: 0.2 | G36: 4 | M36: 0
A37: 1 | B37: 36 | C37: AW 25*33*75 | D37: 0.72 | E37: 7 | F37: 0.2 | G37: 4 | M37: 0
A38: 1 | B38: 37 | C38: AW 20*33*75 | D38: 0.63 | E38: 6.4 | F38: 0.13 | G38: 4 | M38: 0
A39: 1 | B39: 38 | C39: ABW 75*33*75 | D39: 1.14 | E39: 9.8 | F39: 0.53 | G39: 4 | M39: 0
A40: 1 | B40: 39 | C40: AWC 60*60*33*75 | D40: 1.59 | E40: 12.28 | F40: 0.84 | G40: 5 | M40: 0
A41: 1 | B41: 40 | C41: ATWC 60*60*33*75 | D41: 1.59 | E41: 15.6 | F41: 0.84 | G41: 5 | M41: 0
A42: 1 | B42: 41 | C42: AWL42 40*42*75 | M42: 0
A43: 1 | B43: 42 | C43: AWL42 45*42*75 | M43: 0
A44: 1 | B44: 43 | C44: AWL42 50*42*75 | M44: 0
A45: 1 | B45: 44 | C45: AWL42 60*42*75 | D45: 1.09 | E45: 9.42 | F45: 0.49 | M45: 0
A46: 1 | B46: 45 | C46: AWL42 75*42*75 | M46: 0
A47: 1 | B47: 46 | C47: AWL42 80*42*75 | M47: 0
A48: 1 | B48: 47 | C48: AWL42 90*42*75 | M48: 0
A49: 1 | B49: 48 | C49: ABW 75*42*75 | M49: 0
A50: 1 | B50: 49 | C50: AW 100*33*90 | M50: 0
A51: 1 | B51: 50 | C51: AW 90*33*90 | D51: 1.63 | E51: 13.68 | F51: 0.77 | G51: 8 | M51: 0
A52: 1 | B52: 51 | C52: AW 80*33*90 | D52: 1.51 | E52: 12.88 | F52: 0.68 | G52: 8 | M52: 0
A53: 1 | B53: 52 | C53: AW 75*33*90 | D53: 1.38 | E53: 12.08 | F53: 0.59 | G53: 8 | M53: 0
A54: 1 | B54: 53 | C54: AW 60*33*90 | D54: 1.26 | E54: 11.28 | F54: 0.51 | G54: 8 | M54: 0
A55: 1 | B55: 54 | C55: AW 50*33*90 | D55: 1.14 | E55: 10.48 | F55: 0.42 | G55: 8 | M55: 0
A56: 1 | B56: 55 | C56: AW 45*33*90 | D56: 1.08 | E56: 10.08 | F56: 0.37 | G56: 8 | M56: 0
A57: 1 | B57: 56 | C57: AW 40*33*90 | D57: 1.02 | E57: 9.68 | F57: 0.33 | G57: 8 | M57: 0
A58: 1 | B58: 57 | C58: AW 35*33*90 | M58: 0
A59: 1 | B59: 58 | C59: AW 30*33*90 | M59: 0
A60: 1 | B60: 59 | C60: ABW 75*33*90 | D60: 1.45 | E60: 12.4 | F60: 0.64 | G60: 8 | M60: 0
A61: 1 | B61: 60 | C61: AWC 60*60*33*90 | D61: 2.02 | E61: 15.6 | F61: 1.02 | G61: 10 | M61: 0
A62: 1 | B62: 61 | C62: ATWC 60*60*33*90 | D62: 2.03 | E62: 15.6 | F62: 1.02 | G62: 10 | M62: 0
A63: 1 | B63: 62 | C63: AWL42 100*42*90 | M63: 0
A64: 1 | B64: 63 | C64: AWL42 90*42*90 | M64: 0
A65: 1 | B65: 64 | C65: AWL42 80*42*90 | M65: 0
A66: =COUNTIF($C:$C,C66) -> 1 | B66: 65 | C66: AWL42 75*42*90 | M66: 0
A67: 1 | B67: 66 | C67: AWL42 70*42*90 | M67: =SUM(H67:L67) -> 0
A68: 1 | B68: 67 | C68: AWL42 60*42*90 | D68: 1.79 | E68: 13.08 | F68: 0.51 | G68: 8 | M68: 0
A69: 1 | B69: 68 | C69: AWL42 50*42*90 | D69: 1.62 | E69: 12.28 | F69: 0.42 | G69: 8 | M69: 0
A70: 1 | B70: 69 | C70: AWL42 45*42*90 | D70: 1.53 | E70: 11.48 | F70: 0.37 | G70: 8 | M70: 0
A71: 1 | B71: 70 | C71: AWL42 40*42*90 | M71: 0
A72: 1 | B72: 71 | C72: AWL42 35*42*90 | M72: 0
A73: 1 | B73: 72 | C73: AWL42 30*42*90 | M73: 0
A74: 1 | B74: 73 | C74: ABW 75*42*90 | M74: 0
A75: 1 | B75: 74 | C75: AW 100*33*110 | M75: 0
A76: 1 | B76: 75 | C76: AW 90*33*110 | D76: 1.88 | E76: 15.54 | F76: 0.95 | M76: 0
A77: 1 | B77: 76 | C77: AW 80*33*110 | D77: 1.75 | E77: 14.73 | F77: 0.84 | M77: 0
A78: 1 | B78: 77 | C78: AW 75*33*110 | M78: 0
A79: 1 | B79: 78 | C79: AW 70*33*110 | M79: 0
A80: 1 | B80: 79 | C80: AW 60*33*110 | M80: 0
A81: 1 | B81: 80 | C81: AW 50*33*110 | D81: 1.33 | E81: 12 | F81: 0.52 | M81: 0
A82: 1 | B82: 81 | C82: AW 45*33*110 | D82: 1.26 | E82: 11.62 | F82: 0.46 | M82: 0
A83: 1 | B83: 82 | C83: AW 40*33*110 | M83: 0
A84: 1 | B84: 83 | C84: AW 35*33*110 | M84: 0
A85: 1 | B85: 84 | C85: ABW 75*33*110 | M85: 0
A86: 1 | B86: 85 | C86: AWC 60*60*33*110 | M86: 0
A87: 1 | B87: 86 | C87: ATWC 60*60*33*110 | D87: 2.33 | E87: 18 | F87: 1.22 | M87: 0
A88: 1 | B88: 87 | C88: AWL42 100*42*110 | M88: 0
A89: 1 | B89: 88 | C89: AWL42 90*42*110 | M89: 0
A90: 1 | B90: 89 | C90: AWL42 80*42*110 | M90: 0
A91: 2 | B91: 90 | C91: AWL42 75*42*110 | M91: 0
A92: 1 | B92: 91 | C92: AWL42 70*42*110 | M92: 0
A93: 1 | B93: 92 | C93: AWL42 60*42*110 | M93: 0
A94: 3 | B94: 93 | C94: AWL42 50*42*110 | M94: 0
A95: 3 | B95: 94 | C95: AWL42 50*42*110 | M95: 0
A96: 3 | B96: 95 | C96: AWL42 50*42*110 | M96: 0
A97: 1 | B97: 96 | C97: AWL42 35*42*110 | M97: 0
A98: 1 | B98: 97 | C98: AWL42 30*42*110 | M98: 0
A99: 2 | B99: 98 | C99: AWL42 75*42*110 | M99: 0
A100: 1 | B100: 99 | C100: AWT 60*33*135 | M100: 0
A101: 1 | B101: 100 | C101: AWT 50*33*135 | D101: 1.57 | E101: 14.6 | F101: 0.63 | G101: 12 | M101: 0
A102: 1 | B102: 101 | C102: AWT 45*33*135 | D102: 2.11 | E102: 15.52 | F102: 0.57 | G102: 12 | M102: 0
A103: 1 | B103: 102 | C103: AWT 60*42*135 | M103: 0
A104: 1 | B104: 103 | C104: AWT 50*42*135 | D104: 2.22 | E104: 16 | F104: 0.63 | G104: 12 | M104: 0
A105: 1 | B105: 104 | C105: AWT 45*42*135 | M105: 0
A106: 1 | B106: 105 | C106: AWT 60*33*150 | M106: 0
A107: 1 | B107: 106 | C107: AWT 50*33*150 | M107: 0
A108: 1 | B108: 107 | C108: AWT 45*33*150 | M108: 0
A109: 1 | B109: 108 | C109: AWT 60*42*150 | D109: 3 | E109: 17 | F109: 0.83 | M109: 0
A110: 1 | B110: 109 | C110: AWT 50*42*150 | M110: 0
A111: 1 | B111: 110 | C111: AWT 45*42*150 | M111: 0
A112: 1 | B112: 111 | C112: AW 100*33*60 | M112: 0
A113: 1 | B113: 112 | C113: AW 90*33*60 | D113: 1.19 | E113: 9.48 | F113: 0.51 | G113: 4 | M113: 0
A114: 1 | B114: 113 | C114: AW 80*33*60 | D114: 1.09 | E114: 8.88 | F114: 0.45 | G114: 4 | M114: 0
A115: 1 | B115: 114 | C115: AW75*33*60 | G115: 4 | M115: 0
A116: 1 | B116: 115 | C116: AW 70*33*60 | D116: 1 | E116: 8.44 | F116: 0.39 | G116: 5 | M116: 0
A117: 1 | B117: 116 | C117: AW60*33*60 | D117: 0.91 | E117: 8 | F117: 0.33 | G117: 4 | M117: 0
A118: 1 | B118: 117 | C118: AW 50*33*60 | D118: 0.81 | E118: 7.6 | F118: 0.27 | G118: 4 | M118: 0
A119: 1 | B119: 118 | C119: AW 45*33*60 | D119: 0.77 | G119: 4 | M119: 0
A120: 1 | B120: 119 | C120: AW40*33*60 | G120: 4 | M120: 0
A121: 1 | B121: 120 | C121: AW 35*33*60 | G121: 4 | M121: 0
A122: 1 | B122: 121 | C122: AW 30*33*60 | G122: 4 | M122: 0
A123: 1 | B123: 122 | C123: ABW 75*33*60 | G123: 4 | M123: 0
A124: 1 | B124: 123 | C124: AW 100*33*50 | D124: 1.19 | E124: 9.48 | F124: 0.51 | G124: 4 | M124: 0
A125: 1 | B125: 124 | C125: AW 90*33*50 | G125: 4 | M125: 0
A126: 1 | B126: 125 | C126: AW 80*33*50 | G126: 4 | M126: 0
A127: 1 | B127: 126 | C127: AW 75*33*50 | G127: 4 | M127: 0
A128: 1 | B128: 127 | C128: AW 70*33*50 | G128: 4 | M128: 0
A129: 1 | B129: 128 | C129: AW 60*33*50 | G129: 4 | M129: 0
A130: =COUNTIF($C:$C,C130) -> 1 | B130: 129 | C130: AW 50*33*50 | G130: 4 | M130: 0
A131: 1 | B131: 130 | C131: AW 45*33*50 | G131: 4 | M131: =SUM(H131:L131) -> 0
A132: 1 | B132: 131 | C132: AW 40*33*50 | G132: 4 | M132: 0
A133: 1 | B133: 132 | C133: AW 35*33*50 | G133: 4 | M133: 0
A134: 1 | B134: 133 | C134: AW 30*33*50 | G134: 4 | M134: 0
A135: 1 | B135: 134 | C135: ABW 75*33*50 | G135: 4 | M135: 0
A136: 1 | B136: 135 | C136: ATWC 65*65*33*50 | M136: 0
A137: 1 | B137: 136 | C137: AWAR 100*33*35 | D137: 0.84 | E137: 6.92 | F137: 0.37 | G137: 1 | M137: 0
A138: 1 | B138: 137 | C138: AWAR 90*33*35 | M138: 0
A139: 1 | B139: 138 | C139: AWAR 80*33*35 | D139: 0.71 | E139: 6.12 | F139: 0.29 | M139: 0
A140: 1 | B140: 139 | C140: AWAR 70*33*35 | G140: 1 | M140: 0
A141: 1 | B141: 140 | C141: AWAR 60*33*35 | M141: 0
A142: 1 | B142: 141 | C142: AWAR 100*42*35 | M142: 0
A143: 1 | B143: 142 | C143: AWAR 90*42*35 | M143: 0
A144: 1 | B144: 143 | C144: AWAR80*42*35 | M144: 0
A145: 1 | B145: 144 | C145: AWAR 70*42*35 | M145: 0
A146: 1 | B146: 145 | C146: AWAR 60*42*35 | M146: 0
A147: 1 | B147: 146 | C147: AWAR 100*56*35 | M147: 0
A148: 1 | B148: 147 | C148: AWAR 90*56*35 | M148: 0
A149: 1 | B149: 148 | C149: AWAR 80*56*35 | M149: 0
A150: 1 | B150: 149 | C150: AWAR 70*56*35 | M150: 0
A151: 1 | B151: 150 | C151: AWAR 60*56*35 | M151: 0
A152: 1 | B152: 151 | C152: A2D 90*45*20 | M152: 0
A153: 1 | B153: 152 | C153: A2D 80*45*20 | M153: 0
A154: 1 | B154: 153 | C154: A2D 70*45*20 | M154: 0
A155: 1 | B155: 154 | C155: A2D 60*45*20 | M155: 0
A156: 1 | B156: 155 | C156: A2D 50*45*20 | M156: 0
A157: 1 | B157: 156 | C157: A2D 45*45*20 | M157: 0
A158: 1 | B158: 157 | C158: A3D 90*45*20*15*15 | M158: 0
A159: 1 | B159: 158 | C159: A3D 80*45*20*15*15 | D159: 1.3 | E159: 17.28 | F159: 0.92 | G159: 12 | M159: 0
A160: 1 | B160: 159 | C160: A3D 70*45*20*15*15 | M160: 0
A161: 1 | B161: 160 | C161: A3D 60*45*20*15*15 | D161: 1.08 | E161: 14.88 | F161: 0.67 | G161: 12 | M161: 0
A162: 1 | B162: 161 | C162: A3D 50*45*20*15*15 | D162: 0.97 | E162: 13.68 | F162: 0.54 | G162: 12 | M162: 0
A163: 1 | B163: 162 | C163: A3D 45*45*20*15*15 | D163: 0.97 | E163: 13.68 | F163: 0.54 | G163: 12 | M163: 0
A164: 1 | B164: 163 | C164: A4D 90*45*15 | M164: 0
A165: 1 | B165: 164 | C165: A4D 80*45*15 | M165: 0
A166: 1 | B166: 165 | C166: A4D 70*45*15 | M166: 0
A167: 1 | B167: 166 | C167: A4D 60*45*15 | D167: 1.18 | E167: 18.08 | F167: 0.43 | G167: 16 | M167: 0
A168: 1 | B168: 167 | C168: A4D 50*45*15 | D168: 1.06 | E168: 16.48 | F168: 0.33 | G168: 16 | M168: 0
A169: 1 | B169: 168 | C169: A4D 45*45*15 | D169: 1 | E169: 15 | F169: 0.28 | G169: 16 | M169: 0
A170: 1 | B170: 169 | C170: AT 60*56*228 | D170: 4.69 | E170: 28 | F170: 1.31 | G170: 16 | M170: 0
A171: 1 | B171: 170 | C171: AT 50*56*200 | D171: 4.31 | E171: 26.6 | F171: 1.08 | G171: 16 | M171: 0
A172: 1 | B172: 171 | C172: AT 45*56*228 | D172: 4.12 | E172: 25.92 | F172: 0.97 | G172: 16 | M172: 0
A173: 1 | B173: 172 | C173: AT 40*56*228 | M173: 0
A174: 1 | B174: 173 | C174: AT 60*56*212 | D174: 4 | E174: 25 | F174: 1.5 | M174: 0
A175: 1 | B175: 174 | C175: AT 50*56*212 | M175: 0
A176: 1 | B176: 175 | C176: AT 45*56*212 | M176: 0
A177: 1 | B177: 176 | C177: AT 40*56*212 | M177: 0
A178: 1 | B178: 177 | C178: AT 100*56*175 | M178: 0
A179: 1 | B179: 178 | C179: AT 90*56*175 | M179: 0
A180: 1 | B180: 179 | C180: AT 80*56*175 | M180: 0
A181: 1 | B181: 180 | C181: AT 70*56*175 | M181: 0
A182: 1 | B182: 181 | C182: AT 60*56*175 | M182: 0
A183: 1 | B183: 182 | C183: AT 50*56*175 | M183: 0
A184: 1 | B184: 183 | C184: AT 45*56*175 | M184: 0
A185: 1 | B185: 184 | C185: AT 40*56*175 | M185: 0
A186: 1 | B186: 185 | C186: ABT 100*56*135 | M186: 0
A187: 1 | B187: 186 | C187: ABT 90*56*135 | D187: 3.42 | E187: 18.76 | F187: 1.17 | G187: 8 | M187: 0
A188: 1 | B188: 187 | C188: ABT 80*56*135 | M188: 0
A189: 1 | B189: 188 | C189: ABT 70*56*135 | M189: 0
A190: 1 | B190: 189 | C190: ABT 60*56*135 | D190: 2.75 | E190: 16 | F190: 0.77 | G190: 8 | M190: 0
A191: 1 | B191: 190 | C191: ABT 50*56*135 | D191: 2.53 | E191: 15.36 | F191: 0.64 | G191: 8 | M191: 0
A192: 1 | B192: 191 | C192: ABT 45*56*135 | D192: 2.42 | E192: 14.84 | F192: 0.57 | G192: 8 | M192: 0
A193: 1 | B193: 192 | C193: ABT 40*56*135 | M193: 0
A194: =COUNTIF($C:$C,C194) -> 1 | B194: 193 | C194: ABT 60*56*115 | D194: 2.52 | E194: 15.4 | F194: 0.56 | G194: 8 | M194: 0
A195: 1 | B195: 194 | C195: ABT 50*56*115 | D195: 2.3 | E195: 14.6 | F195: 0.54 | G195: 8 | M195: =SUM(H195:L195) -> 0
A196: 1 | B196: 195 | C196: ABT 45*56*115 | D196: 2.19 | E196: 14.2 | F196: 0.48 | G196: 8 | M196: 0
A197: 1 | B197: 196 | C197: ABT 40*56*115 | M197: 0
A198: 1 | B198: 197 | C198: AW 40*33*37.5 | M198: 0
A199: 1 | B199: 198 | C199: AB 100 *70*75 | M199: 0
A200: 1 | B200: 199 | C200: AOB 10*56*75 | M200: 0
... 753 more rows

Sheet التفاصيل
A1: نوع الكابينة | B1: مبلغ التكلفة | C1: العدد | D1: المساحة | E1: PVC | F1: الظهر | G1: اجمالي التكلفة | H1: اجمالي البيع | I1: الربح | J1: رقم الفاتورة | K1: اسم الزبون | L1: الجهة | M1: الكود | N1: تاريخ | O1: الملاحظات
A2: AW 50*33*90 | B2: =IFERROR(VLOOKUP($A2,البيانات!$C$2:$M$300,11,FALSE),"") -> 0 | C2: 1 | D2: =IFERROR(VLOOKUP($A2,البيانات!$C$2:$M$300,2,FALSE)*C:C,"") -> 1.14 | E2: =IFERROR(VLOOKUP($A2,البيانات!$C$2:$M$300,3,FALSE)*C:C,"") -> 10.48 | F2: =IFERROR(VLOOKUP($A2,البيانات!$C$2:$M$300,4,FALSE)*C:C,"") -> 0.42 | G2: =IFERROR(C2*B2,"") -> 0 | H2: 25 | I2: =IFERROR(H2-G2,"") -> 25 | K2: عبد الرحمن1 | L2: معرض | M2: KH49 | N2: 2018-01-29
A3: AW 45*33*90 | B3: =IFERROR(VLOOKUP($A3,البيانات!$C$2:$M$300,11,FALSE),"") -> 0 | C3: 1 | D3: =IFERROR(VLOOKUP($A3,البيانات!$C$2:$M$300,2,FALSE)*C:C,"") -> 1.08 | E3: =IFERROR(VLOOKUP($A3,البيانات!$C$2:$M$300,3,FALSE)*C:C,"") -> 10.08 | F3: =IFERROR(VLOOKUP($A3,البيانات!$C$2:$M$300,4,FALSE)*C:C,"") -> 0.37 | G3: =IFERROR(C3*B3,"") -> 0 | H3: 26 | I3: =IFERROR(H3-G3,"") -> 26 | K3: عبد الرحمن2 | L3: معرض | M3: KH49 | N3: 2018-01-29
A4: AW 50*33*75 | B4: =IFERROR(VLOOKUP($A4,البيانات!$C$2:$M$300,11,FALSE),"") -> 0 | C4: 1 | D4: =IFERROR(VLOOKUP($A4,البيانات!$C$2:$M$300,2,FALSE)*C:C,"") -> 0.91 | E4: =IFERROR(VLOOKUP($A4,البيانات!$C$2:$M$300,3,FALSE)*C:C,"") -> 8.2 | F4: =IFERROR(VLOOKUP($A4,البيانات!$C$2:$M$300,4,FALSE)*C:C,"") -> 0.35 | G4: 0 | H4: 27 | I4: 27 | K4: عبد الرحمن3 | L4: معرض | M4: KH49 | N4: 2018-01-29
A5: AW 45*33*75 | B5: =IFERROR(VLOOKUP($A5,البيانات!$C$2:$M$300,11,FALSE),"") -> 0 | C5: 1 | D5: =IFERROR(VLOOKUP($A5,البيانات!$C$2:$M$300,2,FALSE)*C:C,"") -> 0.86 | E5: =IFERROR(VLOOKUP($A5,البيانات!$C$2:$M$300,3,FALSE)*C:C,"") -> 7.92 | F5: =IFERROR(VLOOKUP($A5,البيانات!$C$2:$M$300,4,FALSE)*C:C,"") -> 0.31 | G5: 0 | H5: 28 | I5: 28 | K5: عبد الرحمن4 | L5: معرض | M5: KH49 | N5: 2018-01-29
A6: AW 50*33*75 | B6: =IFERROR(VLOOKUP($A6,البيانات!$C$2:$M$300,11,FALSE),"") -> 0 | C6: 1 | D6: =IFERROR(VLOOKUP($A6,البيانات!$C$2:$M$300,2,FALSE)*C:C,"") -> 0.91 | E6: =IFERROR(VLOOKUP($A6,البيانات!$C$2:$M$300,3,FALSE)*C:C,"") -> 8.2 | F6: =IFERROR(VLOOKUP($A6,البيانات!$C$2:$M$300,4,FALSE)*C:C,"") -> 0.35 | G6: 0 | H6: 29 | I6: 29 | K6: عبد الرحمن5 | L6: معرض | M6: KH49 | N6: 2018-01-29
A7: ATWC 60*60*33*75 | B7: =IFERROR(VLOOKUP($A7,البيانات!$C$2:$M$300,11,FALSE),"") -> 0 | C7: 1 | D7: =IFERROR(VLOOKUP($A7,البيانات!$C$2:$M$300,2,FALSE)*C:C,"") -> 1.59 | E7: =IFERROR(VLOOKUP($A7,البيانات!$C$2:$M$300,3,FALSE)*C:C,"") -> 15.6 | F7: =IFERROR(VLOOKUP($A7,البيانات!$C$2:$M$300,4,FALSE)*C:C,"") -> 0.84 | G7: 0 | H7: 25 | I7: 25 | K7: عبد الرحمن6 | L7: معرض | M7: KH49 | N7: 2018-01-29
A8: AB 100*56*75 | B8: =IFERROR(VLOOKUP($A8,البيانات!$C$2:$M$300,11,FALSE),"") -> 0 | C8: 1 | D8: =IFERROR(VLOOKUP($A8,البيانات!$C$2:$M$300,2,FALSE)*C:C,"") -> 2.1 | E8: =IFERROR(VLOOKUP($A8,البيانات!$C$2:$M$300,3,FALSE)*C:C,"") -> 14.8 | F8: =IFERROR(VLOOKUP($A8,البيانات!$C$2:$M$300,4,FALSE)*C:C,"") -> 0.63 | G8: 0 | H8: 26 | I8: 26 | K8: عبد الرحمن7 | L8: معرض | M8: KH53 | N8: 2018-01-18
A9: AB 100*56*75 | B9: =IFERROR(VLOOKUP($A9,البيانات!$C$2:$M$300,11,FALSE),"") -> 0 | C9: 1 | D9: =IFERROR(VLOOKUP($A9,البيانات!$C$2:$M$300,2,FALSE)*C:C,"") -> 2.1 | E9: =IFERROR(VLOOKUP($A9,البيانات!$C$2:$M$300,3,FALSE)*C:C,"") -> 14.8 | F9: =IFERROR(VLOOKUP($A9,البيانات!$C$2:$M$300,4,FALSE)*C:C,"") -> 0.63 | G9: 0 | H9: 27 | I9: 27 | K9: عبد الرحمن8 | L9: معرض | M9: KH53 | N9: 2018-01-18
A10: AW 25*33*75 | B10: =IFERROR(VLOOKUP($A10,البيانات!$C$2:$M$300,11,FALSE),"") -> 0 | C10: 1 | D10: =IFERROR(VLOOKUP($A10,البيانات!$C$2:$M$300,2,FALSE)*C:C,"") -> 0.72 | E10: =IFERROR(VLOOKUP($A10,البيانات!$C$2:$M$300,3,FALSE)*C:C,"") -> 7 | F10: =IFERROR(VLOOKUP($A10,البيانات!$C$2:$M$300,4,FALSE)*C:C,"") -> 0.2 | G10: 0 | H10: 28 | I10: 28 | K10: عبد الرحمن9 | L10: معرض | M10: KH53 | N10: 2018-01-18
A11: AW 20*33*75 | B11: =IFERROR(VLOOKUP($A11,البيانات!$C$2:$M$300,11,FALSE),"") -> 0 | C11: 1 | D11: =IFERROR(VLOOKUP($A11,البيانات!$C$2:$M$300,2,FALSE)*C:C,"") -> 0.63 | E11: =IFERROR(VLOOKUP($A11,البيانات!$C$2:$M$300,3,FALSE)*C:C,"") -> 6.4 | F11: =IFERROR(VLOOKUP($A11,البيانات!$C$2:$M$300,4,FALSE)*C:C,"") -> 0.13 | G11: 0 | H11: 29 | I11: 29 | K11: عبد الرحمن10 | L11: معرض | M11: KH53 | N11: 2018-01-18
A12: ASB 100*56*75 | B12: =IFERROR(VLOOKUP($A12,البيانات!$C$2:$M$300,11,FALSE),"") -> 0 | C12: 1 | D12: =IFERROR(VLOOKUP($A12,البيانات!$C$2:$M$300,2,FALSE)*C:C,"") -> 1.78 | E12: =IFERROR(VLOOKUP($A12,البيانات!$C$2:$M$300,3,FALSE)*C:C,"") -> 14.8 | F12: =IFERROR(VLOOKUP($A12,البيانات!$C$2:$M$300,4,FALSE)*C:C,"") -> 0.63 | G12: 0 | H12: 25 | I12: 25 | K12: عبد الرحمن11 | L12: معرض | M12: KH54 | N12: 2018-01-20
A13: AW 90*33*75 | B13: =IFERROR(VLOOKUP($A13,البيانات!$C$2:$M$300,11,FALSE),"") -> 0 | C13: 1 | D13: =IFERROR(VLOOKUP($A13,البيانات!$C$2:$M$300,2,FALSE)*C:C,"") -> 1.28 | E13: =IFERROR(VLOOKUP($A13,البيانات!$C$2:$M$300,3,FALSE)*C:C,"") -> 10.6 | F13: =IFERROR(VLOOKUP($A13,البيانات!$C$2:$M$300,4,FALSE)*C:C,"") -> 0.64 | G13: 0 | H13: 26 | I13: 26 | K13: عبد الرحمن12 | L13: معرض | M13: KH54 | N13: 2018-01-20
A14: AW 40*33*75 | B14: =IFERROR(VLOOKUP($A14,البيانات!$C$2:$M$300,11,FALSE),"") -> 0 | C14: 3 | D14: =IFERROR(VLOOKUP($A14,البيانات!$C$2:$M$300,2,FALSE)*C:C,"") -> 2.46 | E14: =IFERROR(VLOOKUP($A14,البيانات!$C$2:$M$300,3,FALSE)*C:C,"") -> 22.8 | F14: =IFERROR(VLOOKUP($A14,البيانات!$C$2:$M$300,4,FALSE)*C:C,"") -> 0.81 | G14: 0 | H14: 27 | I14: 27 | K14: عبد الرحمن13 | L14: معرض | M14: KH55 | N14: 2018-01-20
B15: =IFERROR(VLOOKUP($A15,البيانات!$C$2:$M$300,11,FALSE),"") ->  | D15: =IFERROR(VLOOKUP($A15,البيانات!$C$2:$M$300,2,FALSE)*C:C,"") ->  | E15: =IFERROR(VLOOKUP($A15,البيانات!$C$2:$M$300,3,FALSE)*C:C,"") ->  | F15: =IFERROR(VLOOKUP($A15,البيانات!$C$2:$M$300,4,FALSE)*C:C,"") ->  | H15: 25 | K15: عبد الرحمن14 | L15: معرض
A16: A4D 45*45*15 | B16: =IFERROR(VLOOKUP($A16,البيانات!$C$2:$M$300,11,FALSE),"") -> 0 | C16: 2 | D16: =IFERROR(VLOOKUP($A16,البيانات!$C$2:$M$300,2,FALSE)*C:C,"") -> 2 | E16: =IFERROR(VLOOKUP($A16,البيانات!$C$2:$M$300,3,FALSE)*C:C,"") -> 30 | F16: =IFERROR(VLOOKUP($A16,البيانات!$C$2:$M$300,4,FALSE)*C:C,"") -> 0.56 | G16: 0 | H16: 26 | I16: 26 | K16: عبد الرحمن15 | L16: معرض | M16: KH55 | N16: 2018-01-20
A17: AW 35*33*75 | B17: =IFERROR(VLOOKUP($A17,البيانات!$C$2:$M$300,11,FALSE),"") -> 0 | C17: 1 | D17: =IFERROR(VLOOKUP($A17,البيانات!$C$2:$M$300,2,FALSE)*C:C,"") -> 0.77 | E17: =IFERROR(VLOOKUP($A17,البيانات!$C$2:$M$300,3,FALSE)*C:C,"") -> 7.3 | F17: =IFERROR(VLOOKUP($A17,البيانات!$C$2:$M$300,4,FALSE)*C:C,"") -> 0.24 | G17: 0 | H17: 27 | I17: 27 | K17: عبد الرحمن16 | L17: معرض | M17: KH60 | N17: 2018-01-24
B18: =IFERROR(VLOOKUP($A18,البيانات!$C$2:$M$207,11,FALSE),"") ->  | D18: =IFERROR(VLOOKUP($A18,البيانات!$C$2:$M$207,2,FALSE)*C:C,"") ->  | E18: =IFERROR(VLOOKUP($A18,البيانات!$C$2:$M$207,3,FALSE)*C:C,"") ->  | F18: =IFERROR(VLOOKUP($A18,البيانات!$C$2:$M$207,4,FALSE)*C:C,"") ->  | G18: =IFERROR(C18*B18,"") ->  | I18: =IFERROR(H18-G18,"") -> 
B19: =IFERROR(VLOOKUP($A19,البيانات!$C$2:$M$207,11,FALSE),"") ->  | D19: =IFERROR(VLOOKUP($A19,البيانات!$C$2:$M$207,2,FALSE)*C:C,"") ->  | E19: =IFERROR(VLOOKUP($A19,البيانات!$C$2:$M$207,3,FALSE)*C:C,"") ->  | F19: =IFERROR(VLOOKUP($A19,البيانات!$C$2:$M$207,4,FALSE)*C:C,"") -> 
B20: =IFERROR(VLOOKUP($A20,البيانات!$C$2:$M$207,11,FALSE),"") ->  | D20: =IFERROR(VLOOKUP($A20,البيانات!$C$2:$M$207,2,FALSE)*C:C,"") ->  | E20: =IFERROR(VLOOKUP($A20,البيانات!$C$2:$M$207,3,FALSE)*C:C,"") ->  | F20: =IFERROR(VLOOKUP($A20,البيانات!$C$2:$M$207,4,FALSE)*C:C,"") -> 
B21: =IFERROR(VLOOKUP($A21,البيانات!$C$2:$M$207,11,FALSE),"") ->  | D21: =IFERROR(VLOOKUP($A21,البيانات!$C$2:$M$207,2,FALSE)*C:C,"") ->  | E21: =IFERROR(VLOOKUP($A21,البيانات!$C$2:$M$207,3,FALSE)*C:C,"") ->  | F21: =IFERROR(VLOOKUP($A21,البيانات!$C$2:$M$207,4,FALSE)*C:C,"") -> 
B22: =IFERROR(VLOOKUP($A22,البيانات!$C$2:$M$207,11,FALSE),"") ->  | D22: =IFERROR(VLOOKUP($A22,البيانات!$C$2:$M$207,2,FALSE)*C:C,"") ->  | E22: =IFERROR(VLOOKUP($A22,البيانات!$C$2:$M$207,3,FALSE)*C:C,"") ->  | F22: =IFERROR(VLOOKUP($A22,البيانات!$C$2:$M$207,4,FALSE)*C:C,"") -> 
B23: =IFERROR(VLOOKUP($A23,البيانات!$C$2:$M$207,11,FALSE),"") ->  | D23: =IFERROR(VLOOKUP($A23,البيانات!$C$2:$M$207,2,FALSE)*C:C,"") ->  | E23: =IFERROR(VLOOKUP($A23,البيانات!$C$2:$M$207,3,FALSE)*C:C,"") ->  | F23: =IFERROR(VLOOKUP($A23,البيانات!$C$2:$M$207,4,FALSE)*C:C,"") ->  | G23: =IFERROR(C23*B23,"") -> 
B24: =IFERROR(VLOOKUP($A24,البيانات!$C$2:$M$207,11,FALSE),"") ->  | D24: =IFERROR(VLOOKUP($A24,البيانات!$C$2:$M$207,2,FALSE)*C:C,"") ->  | E24: =IFERROR(VLOOKUP($A24,البيانات!$C$2:$M$207,3,FALSE)*C:C,"") ->  | F24: =IFERROR(VLOOKUP($A24,البيانات!$C$2:$M$207,4,FALSE)*C:C,"") -> 
B25: =IFERROR(VLOOKUP($A25,البيانات!$C$2:$M$207,11,FALSE),"") ->  | D25: =IFERROR(VLOOKUP($A25,البيانات!$C$2:$M$207,2,FALSE)*C:C,"") ->  | E25: =IFERROR(VLOOKUP($A25,البيانات!$C$2:$M$207,3,FALSE)*C:C,"") ->  | F25: =IFERROR(VLOOKUP($A25,البيانات!$C$2:$M$207,4,FALSE)*C:C,"") -> 
B26: =IFERROR(VLOOKUP($A26,البيانات!$C$2:$M$207,11,FALSE),"") ->  | D26: =IFERROR(VLOOKUP($A26,البيانات!$C$2:$M$207,2,FALSE)*C:C,"") ->  | E26: =IFERROR(VLOOKUP($A26,البيانات!$C$2:$M$207,3,FALSE)*C:C,"") ->  | F26: =IFERROR(VLOOKUP($A26,البيانات!$C$2:$M$207,4,FALSE)*C:C,"") -> 
B27: =IFERROR(VLOOKUP($A27,البيانات!$C$2:$M$207,11,FALSE),"") ->  | D27: =IFERROR(VLOOKUP($A27,البيانات!$C$2:$M$207,2,FALSE)*C:C,"") ->  | E27: =IFERROR(VLOOKUP($A27,البيانات!$C$2:$M$207,3,FALSE)*C:C,"") ->  | F27: =IFERROR(VLOOKUP($A27,البيانات!$C$2:$M$207,4,FALSE)*C:C,"") -> 
B28: =IFERROR(VLOOKUP($A28,البيانات!$C$2:$M$207,11,FALSE),"") ->  | D28: =IFERROR(VLOOKUP($A28,البيانات!$C$2:$M$207,2,FALSE)*C:C,"") ->  | E28: =IFERROR(VLOOKUP($A28,البيانات!$C$2:$M$207,3,FALSE)*C:C,"") ->  | F28: =IFERROR(VLOOKUP($A28,البيانات!$C$2:$M$207,4,FALSE)*C:C,"") -> 
B29: =IFERROR(VLOOKUP($A29,البيانات!$C$2:$M$207,11,FALSE),"") ->  | D29: =IFERROR(VLOOKUP($A29,البيانات!$C$2:$M$207,2,FALSE)*C:C,"") ->  | E29: =IFERROR(VLOOKUP($A29,البيانات!$C$2:$M$207,3,FALSE)*C:C,"") ->  | F29: =IFERROR(VLOOKUP($A29,البيانات!$C$2:$M$207,4,FALSE)*C:C,"") -> 
B30: =IFERROR(VLOOKUP($A30,البيانات!$C$2:$M$207,11,FALSE),"") ->  | D30: =IFERROR(VLOOKUP($A30,البيانات!$C$2:$M$207,2,FALSE)*C:C,"") ->  | E30: =IFERROR(VLOOKUP($A30,البيانات!$C$2:$M$207,3,FALSE)*C:C,"") ->  | F30: =IFERROR(VLOOKUP($A30,البيانات!$C$2:$M$207,4,FALSE)*C:C,"") -> 
B31: =IFERROR(VLOOKUP($A31,البيانات!$C$2:$M$207,11,FALSE),"") ->  | D31: =IFERROR(VLOOKUP($A31,البيانات!$C$2:$M$207,2,FALSE)*C:C,"") ->  | E31: =IFERROR(VLOOKUP($A31,البيانات!$C$2:$M$207,3,FALSE)*C:C,"") ->  | F31: =IFERROR(VLOOKUP($A31,البيانات!$C$2:$M$207,4,FALSE)*C:C,"") -> 
B32: =IFERROR(VLOOKUP($A32,البيانات!$C$2:$M$207,11,FALSE),"") ->  | D32: =IFERROR(VLOOKUP($A32,البيانات!$C$2:$M$207,2,FALSE)*C:C,"") ->  | E32: =IFERROR(VLOOKUP($A32,البيانات!$C$2:$M$207,3,FALSE)*C:C,"") ->  | F32: =IFERROR(VLOOKUP($A32,البيانات!$C$2:$M$207,4,FALSE)*C:C,"") -> 
B33: =IFERROR(VLOOKUP($A33,البيانات!$C$2:$M$207,11,FALSE),"") ->  | D33: =IFERROR(VLOOKUP($A33,البيانات!$C$2:$M$207,2,FALSE)*C:C,"") ->  | E33: =IFERROR(VLOOKUP($A33,البيانات!$C$2:$M$207,3,FALSE)*C:C,"") ->  | F33: =IFERROR(VLOOKUP($A33,البيانات!$C$2:$M$207,4,FALSE)*C:C,"") -> 
B34: =IFERROR(VLOOKUP($A34,البيانات!$C$2:$M$207,11,FALSE),"") ->  | D34: =IFERROR(VLOOKUP($A34,البيانات!$C$2:$M$207,2,FALSE)*C:C,"") ->  | E34: =IFERROR(VLOOKUP($A34,البيانات!$C$2:$M$207,3,FALSE)*C:C,"") ->  | F34: =IFERROR(VLOOKUP($A34,البيانات!$C$2:$M$207,4,FALSE)*C:C,"") -> 
B35: =IFERROR(VLOOKUP($A35,البيانات!$C$2:$M$207,11,FALSE),"") ->  | D35: =IFERROR(VLOOKUP($A35,البيانات!$C$2:$M$207,2,FALSE)*C:C,"") ->  | E35: =IFERROR(VLOOKUP($A35,البيانات!$C$2:$M$207,3,FALSE)*C:C,"") ->  | F35: =IFERROR(VLOOKUP($A35,البيانات!$C$2:$M$207,4,FALSE)*C:C,"") -> 
B36: =IFERROR(VLOOKUP($A36,البيانات!$C$2:$M$207,11,FALSE),"") ->  | D36: =IFERROR(VLOOKUP($A36,البيانات!$C$2:$M$207,2,FALSE)*C:C,"") ->  | E36: =IFERROR(VLOOKUP($A36,البيانات!$C$2:$M$207,3,FALSE)*C:C,"") ->  | F36: =IFERROR(VLOOKUP($A36,البيانات!$C$2:$M$207,4,FALSE)*C:C,"") -> 
B37: =IFERROR(VLOOKUP($A37,البيانات!$C$2:$M$207,11,FALSE),"") ->  | D37: =IFERROR(VLOOKUP($A37,البيانات!$C$2:$M$207,2,FALSE)*C:C,"") ->  | E37: =IFERROR(VLOOKUP($A37,البيانات!$C$2:$M$207,3,FALSE)*C:C,"") ->  | F37: =IFERROR(VLOOKUP($A37,البيانات!$C$2:$M$207,4,FALSE)*C:C,"") -> 
B38: =IFERROR(VLOOKUP($A38,البيانات!$C$2:$M$207,11,FALSE),"") ->  | D38: =IFERROR(VLOOKUP($A38,البيانات!$C$2:$M$207,2,FALSE)*C:C,"") ->  | E38: =IFERROR(VLOOKUP($A38,البيانات!$C$2:$M$207,3,FALSE)*C:C,"") ->  | F38: =IFERROR(VLOOKUP($A38,البيانات!$C$2:$M$207,4,FALSE)*C:C,"") -> 
B39: =IFERROR(VLOOKUP($A39,البيانات!$C$2:$M$207,11,FALSE),"") ->  | D39: =IFERROR(VLOOKUP($A39,البيانات!$C$2:$M$207,2,FALSE)*C:C,"") ->  | E39: =IFERROR(VLOOKUP($A39,البيانات!$C$2:$M$207,3,FALSE)*C:C,"") ->  | F39: =IFERROR(VLOOKUP($A39,البيانات!$C$2:$M$207,4,FALSE)*C:C,"") -> 
B40: =IFERROR(VLOOKUP($A40,البيانات!$C$2:$M$207,11,FALSE),"") ->  | D40: =IFERROR(VLOOKUP($A40,البيانات!$C$2:$M$207,2,FALSE)*C:C,"") ->  | E40: =IFERROR(VLOOKUP($A40,البيانات!$C$2:$M$207,3,FALSE)*C:C,"") ->  | F40: =IFERROR(VLOOKUP($A40,البيانات!$C$2:$M$207,4,FALSE)*C:C,"") -> 
B41: =IFERROR(VLOOKUP($A41,البيانات!$C$2:$M$207,11,FALSE),"") ->  | D41: =IFERROR(VLOOKUP($A41,البيانات!$C$2:$M$207,2,FALSE)*C:C,"") ->  | E41: =IFERROR(VLOOKUP($A41,البيانات!$C$2:$M$207,3,FALSE)*C:C,"") ->  | F41: =IFERROR(VLOOKUP($A41,البيانات!$C$2:$M$207,4,FALSE)*C:C,"") -> 
B42: =IFERROR(VLOOKUP($A42,البيانات!$C$2:$M$207,11,FALSE),"") ->  | D42: =IFERROR(VLOOKUP($A42,البيانات!$C$2:$M$207,2,FALSE)*C:C,"") ->  | E42: =IFERROR(VLOOKUP($A42,البيانات!$C$2:$M$207,3,FALSE)*C:C,"") ->  | F42: =IFERROR(VLOOKUP($A42,البيانات!$C$2:$M$207,4,FALSE)*C:C,"") -> 
B43: =IFERROR(VLOOKUP($A43,البيانات!$C$2:$M$207,11,FALSE),"") ->  | D43: =IFERROR(VLOOKUP($A43,البيانات!$C$2:$M$207,2,FALSE)*C:C,"") ->  | E43: =IFERROR(VLOOKUP($A43,البيانات!$C$2:$M$207,3,FALSE)*C:C,"") ->  | F43: =IFERROR(VLOOKUP($A43,البيانات!$C$2:$M$207,4,FALSE)*C:C,"") -> 
B44: =IFERROR(VLOOKUP($A44,البيانات!$C$2:$M$207,11,FALSE),"") ->  | D44: =IFERROR(VLOOKUP($A44,البيانات!$C$2:$M$207,2,FALSE)*C:C,"") ->  | E44: =IFERROR(VLOOKUP($A44,البيانات!$C$2:$M$207,3,FALSE)*C:C,"") ->  | F44: =IFERROR(VLOOKUP($A44,البيانات!$C$2:$M$207,4,FALSE)*C:C,"") -> 
B45: =IFERROR(VLOOKUP($A45,البيانات!$C$2:$M$207,11,FALSE),"") ->  | D45: =IFERROR(VLOOKUP($A45,البيانات!$C$2:$M$207,2,FALSE)*C:C,"") ->  | E45: =IFERROR(VLOOKUP($A45,البيانات!$C$2:$M$207,3,FALSE)*C:C,"") ->  | F45: =IFERROR(VLOOKUP($A45,البيانات!$C$2:$M$207,4,FALSE)*C:C,"") -> 
B46: =IFERROR(VLOOKUP($A46,البيانات!$C$2:$M$207,11,FALSE),"") ->  | D46: =IFERROR(VLOOKUP($A46,البيانات!$C$2:$M$207,2,FALSE)*C:C,"") ->  | E46: =IFERROR(VLOOKUP($A46,البيانات!$C$2:$M$207,3,FALSE)*C:C,"") ->  | F46: =IFERROR(VLOOKUP($A46,البيانات!$C$2:$M$207,4,FALSE)*C:C,"") -> 
B47: =IFERROR(VLOOKUP($A47,البيانات!$C$2:$M$207,11,FALSE),"") ->  | D47: =IFERROR(VLOOKUP($A47,البيانات!$C$2:$M$207,2,FALSE)*C:C,"") ->  | E47: =IFERROR(VLOOKUP($A47,البيانات!$C$2:$M$207,3,FALSE)*C:C,"") ->  | F47: =IFERROR(VLOOKUP($A47,البيانات!$C$2:$M$207,4,FALSE)*C:C,"") -> 
B48: =IFERROR(VLOOKUP($A48,البيانات!$C$2:$M$207,11,FALSE),"") ->  | D48: =IFERROR(VLOOKUP($A48,البيانات!$C$2:$M$207,2,FALSE)*C:C,"") ->  | E48: =IFERROR(VLOOKUP($A48,البيانات!$C$2:$M$207,3,FALSE)*C:C,"") ->  | F48: =IFERROR(VLOOKUP($A48,البيانات!$C$2:$M$207,4,FALSE)*C:C,"") -> 
B49: =IFERROR(VLOOKUP($A49,البيانات!$C$2:$M$207,11,FALSE),"") ->  | D49: =IFERROR(VLOOKUP($A49,البيانات!$C$2:$M$207,2,FALSE)*C:C,"") ->  | E49: =IFERROR(VLOOKUP($A49,البيانات!$C$2:$M$207,3,FALSE)*C:C,"") ->  | F49: =IFERROR(VLOOKUP($A49,البيانات!$C$2:$M$207,4,FALSE)*C:C,"") -> 
B50: =IFERROR(VLOOKUP($A50,البيانات!$C$2:$M$207,11,FALSE),"") ->  | D50: =IFERROR(VLOOKUP($A50,البيانات!$C$2:$M$207,2,FALSE)*C:C,"") ->  | E50: =IFERROR(VLOOKUP($A50,البيانات!$C$2:$M$207,3,FALSE)*C:C,"") ->  | F50: =IFERROR(VLOOKUP($A50,البيانات!$C$2:$M$207,4,FALSE)*C:C,"") -> 
B51: =IFERROR(VLOOKUP($A51,البيانات!$C$2:$M$207,11,FALSE),"") ->  | D51: =IFERROR(VLOOKUP($A51,البيانات!$C$2:$M$207,2,FALSE)*C:C,"") ->  | E51: =IFERROR(VLOOKUP($A51,البيانات!$C$2:$M$207,3,FALSE)*C:C,"") ->  | F51: =IFERROR(VLOOKUP($A51,البيانات!$C$2:$M$207,4,FALSE)*C:C,"") -> 
B52: =IFERROR(VLOOKUP($A52,البيانات!$C$2:$M$207,11,FALSE),"") ->  | D52: =IFERROR(VLOOKUP($A52,البيانات!$C$2:$M$207,2,FALSE)*C:C,"") ->  | E52: =IFERROR(VLOOKUP($A52,البيانات!$C$2:$M$207,3,FALSE)*C:C,"") ->  | F52: =IFERROR(VLOOKUP($A52,البيانات!$C$2:$M$207,4,FALSE)*C:C,"") -> 
B53: =IFERROR(VLOOKUP($A53,البيانات!$C$2:$M$207,11,FALSE),"") ->  | D53: =IFERROR(VLOOKUP($A53,البيانات!$C$2:$M$207,2,FALSE)*C:C,"") ->  | E53: =IFERROR(VLOOKUP($A53,البيانات!$C$2:$M$207,3,FALSE)*C:C,"") ->  | F53: =IFERROR(VLOOKUP($A53,البيانات!$C$2:$M$207,4,FALSE)*C:C,"") -> 
B54: =IFERROR(VLOOKUP($A54,البيانات!$C$2:$M$207,11,FALSE),"") ->  | D54: =IFERROR(VLOOKUP($A54,البيانات!$C$2:$M$207,2,FALSE)*C:C,"") ->  | E54: =IFERROR(VLOOKUP($A54,البيانات!$C$2:$M$207,3,FALSE)*C:C,"") ->  | F54: =IFERROR(VLOOKUP($A54,البيانات!$C$2:$M$207,4,FALSE)*C:C,"") -> 
B55: =IFERROR(VLOOKUP($A55,البيانات!$C$2:$M$207,11,FALSE),"") ->  | D55: =IFERROR(VLOOKUP($A55,البيانات!$C$2:$M$207,2,FALSE)*C:C,"") ->  | E55: =IFERROR(VLOOKUP($A55,البيانات!$C$2:$M$207,3,FALSE)*C:C,"") ->  | F55: =IFERROR(VLOOKUP($A55,البيانات!$C$2:$M$207,4,FALSE)*C:C,"") -> 
B56: =IFERROR(VLOOKUP($A56,البيانات!$C$2:$M$207,11,FALSE),"") ->  | D56: =IFERROR(VLOOKUP($A56,البيانات!$C$2:$M$207,2,FALSE)*C:C,"") ->  | E56: =IFERROR(VLOOKUP($A56,البيانات!$C$2:$M$207,3,FALSE)*C:C,"") ->  | F56: =IFERROR(VLOOKUP($A56,البيانات!$C$2:$M$207,4,FALSE)*C:C,"") -> 
B57: =IFERROR(VLOOKUP($A57,البيانات!$C$2:$M$207,11,FALSE),"") ->  | D57: =IFERROR(VLOOKUP($A57,البيانات!$C$2:$M$207,2,FALSE)*C:C,"") ->  | E57: =IFERROR(VLOOKUP($A57,البيانات!$C$2:$M$207,3,FALSE)*C:C,"") ->  | F57: =IFERROR(VLOOKUP($A57,البيانات!$C$2:$M$207,4,FALSE)*C:C,"") -> 
B58: =IFERROR(VLOOKUP($A58,البيانات!$C$2:$M$207,11,FALSE),"") ->  | D58: =IFERROR(VLOOKUP($A58,البيانات!$C$2:$M$207,2,FALSE)*C:C,"") ->  | E58: =IFERROR(VLOOKUP($A58,البيانات!$C$2:$M$207,3,FALSE)*C:C,"") ->  | F58: =IFERROR(VLOOKUP($A58,البيانات!$C$2:$M$207,4,FALSE)*C:C,"") -> 
B59: =IFERROR(VLOOKUP($A59,البيانات!$C$2:$M$207,11,FALSE),"") ->  | D59: =IFERROR(VLOOKUP($A59,البيانات!$C$2:$M$207,2,FALSE)*C:C,"") ->  | E59: =IFERROR(VLOOKUP($A59,البيانات!$C$2:$M$207,3,FALSE)*C:C,"") ->  | F59: =IFERROR(VLOOKUP($A59,البيانات!$C$2:$M$207,4,FALSE)*C:C,"") -> 
B60: =IFERROR(VLOOKUP($A60,البيانات!$C$2:$M$207,11,FALSE),"") ->  | D60: =IFERROR(VLOOKUP($A60,البيانات!$C$2:$M$207,2,FALSE)*C:C,"") ->  | E60: =IFERROR(VLOOKUP($A60,البيانات!$C$2:$M$207,3,FALSE)*C:C,"") ->  | F60: =IFERROR(VLOOKUP($A60,البيانات!$C$2:$M$207,4,FALSE)*C:C,"") -> 
B61: =IFERROR(VLOOKUP($A61,البيانات!$C$2:$M$207,11,FALSE),"") ->  | D61: =IFERROR(VLOOKUP($A61,البيانات!$C$2:$M$207,2,FALSE)*C:C,"") ->  | E61: =IFERROR(VLOOKUP($A61,البيانات!$C$2:$M$207,3,FALSE)*C:C,"") ->  | F61: =IFERROR(VLOOKUP($A61,البيانات!$C$2:$M$207,4,FALSE)*C:C,"") -> 
B62: =IFERROR(VLOOKUP($A62,البيانات!$C$2:$M$207,11,FALSE),"") ->  | D62: =IFERROR(VLOOKUP($A62,البيانات!$C$2:$M$207,2,FALSE)*C:C,"") ->  | E62: =IFERROR(VLOOKUP($A62,البيانات!$C$2:$M$207,3,FALSE)*C:C,"") ->  | F62: =IFERROR(VLOOKUP($A62,البيانات!$C$2:$M$207,4,FALSE)*C:C,"") -> 
B63: =IFERROR(VLOOKUP($A63,البيانات!$C$2:$M$207,11,FALSE),"") ->  | D63: =IFERROR(VLOOKUP($A63,البيانات!$C$2:$M$207,2,FALSE)*C:C,"") ->  | E63: =IFERROR(VLOOKUP($A63,البيانات!$C$2:$M$207,3,FALSE)*C:C,"") ->  | F63: =IFERROR(VLOOKUP($A63,البيانات!$C$2:$M$207,4,FALSE)*C:C,"") -> 
B64: =IFERROR(VLOOKUP($A64,البيانات!$C$2:$M$207,11,FALSE),"") ->  | D64: =IFERROR(VLOOKUP($A64,البيانات!$C$2:$M$207,2,FALSE)*C:C,"") ->  | E64: =IFERROR(VLOOKUP($A64,البيانات!$C$2:$M$207,3,FALSE)*C:C,"") ->  | F64: =IFERROR(VLOOKUP($A64,البيانات!$C$2:$M$207,4,FALSE)*C:C,"") -> 
B65: =IFERROR(VLOOKUP($A65,البيانات!$C$2:$M$207,11,FALSE),"") ->  | D65: =IFERROR(VLOOKUP($A65,البيانات!$C$2:$M$207,2,FALSE)*C:C,"") ->  | E65: =IFERROR(VLOOKUP($A65,البيانات!$C$2:$M$207,3,FALSE)*C:C,"") ->  | F65: =IFERROR(VLOOKUP($A65,البيانات!$C$2:$M$207,4,FALSE)*C:C,"") -> 
B66: =IFERROR(VLOOKUP($A66,البيانات!$C$2:$M$207,11,FALSE),"") ->  | D66: =IFERROR(VLOOKUP($A66,البيانات!$C$2:$M$207,2,FALSE)*C:C,"") ->  | E66: =IFERROR(VLOOKUP($A66,البيانات!$C$2:$M$207,3,FALSE)*C:C,"") ->  | F66: =IFERROR(VLOOKUP($A66,البيانات!$C$2:$M$207,4,FALSE)*C:C,"") -> 
B67: =IFERROR(VLOOKUP($A67,البيانات!$C$2:$M$207,11,FALSE),"") ->  | D67: =IFERROR(VLOOKUP($A67,البيانات!$C$2:$M$207,2,FALSE)*C:C,"") ->  | E67: =IFERROR(VLOOKUP($A67,البيانات!$C$2:$M$207,3,FALSE)*C:C,"") ->  | F67: =IFERROR(VLOOKUP($A67,البيانات!$C$2:$M$207,4,FALSE)*C:C,"") -> 
B68: =IFERROR(VLOOKUP($A68,البيانات!$C$2:$M$207,11,FALSE),"") ->  | D68: =IFERROR(VLOOKUP($A68,البيانات!$C$2:$M$207,2,FALSE)*C:C,"") ->  | E68: =IFERROR(VLOOKUP($A68,البيانات!$C$2:$M$207,3,FALSE)*C:C,"") ->  | F68: =IFERROR(VLOOKUP($A68,البيانات!$C$2:$M$207,4,FALSE)*C:C,"") -> 
B69: =IFERROR(VLOOKUP($A69,البيانات!$C$2:$M$207,11,FALSE),"") ->  | D69: =IFERROR(VLOOKUP($A69,البيانات!$C$2:$M$207,2,FALSE)*C:C,"") ->  | E69: =IFERROR(VLOOKUP($A69,البيانات!$C$2:$M$207,3,FALSE)*C:C,"") ->  | F69: =IFERROR(VLOOKUP($A69,البيانات!$C$2:$M$207,4,FALSE)*C:C,"") -> 
B70: =IFERROR(VLOOKUP($A70,البيانات!$C$2:$M$207,11,FALSE),"") ->  | D70: =IFERROR(VLOOKUP($A70,البيانات!$C$2:$M$207,2,FALSE)*C:C,"") ->  | E70: =IFERROR(VLOOKUP($A70,البيانات!$C$2:$M$207,3,FALSE)*C:C,"") ->  | F70: =IFERROR(VLOOKUP($A70,البيانات!$C$2:$M$207,4,FALSE)*C:C,"") ->  | I70: =IFERROR(H70-G70,"") -> 
B71: =IFERROR(VLOOKUP($A71,البيانات!$C$2:$M$207,11,FALSE),"") ->  | D71: =IFERROR(VLOOKUP($A71,البيانات!$C$2:$M$207,2,FALSE)*C:C,"") ->  | E71: =IFERROR(VLOOKUP($A71,البيانات!$C$2:$M$207,3,FALSE)*C:C,"") ->  | F71: =IFERROR(VLOOKUP($A71,البيانات!$C$2:$M$207,4,FALSE)*C:C,"") -> 
B72: =IFERROR(VLOOKUP($A72,البيانات!$C$2:$M$207,11,FALSE),"") ->  | D72: =IFERROR(VLOOKUP($A72,البيانات!$C$2:$M$207,2,FALSE)*C:C,"") ->  | E72: =IFERROR(VLOOKUP($A72,البيانات!$C$2:$M$207,3,FALSE)*C:C,"") ->  | F72: =IFERROR(VLOOKUP($A72,البيانات!$C$2:$M$207,4,FALSE)*C:C,"") -> 
B73: =IFERROR(VLOOKUP($A73,البيانات!$C$2:$M$207,11,FALSE),"") ->  | D73: =IFERROR(VLOOKUP($A73,البيانات!$C$2:$M$207,2,FALSE)*C:C,"") ->  | E73: =IFERROR(VLOOKUP($A73,البيانات!$C$2:$M$207,3,FALSE)*C:C,"") ->  | F73: =IFERROR(VLOOKUP($A73,البيانات!$C$2:$M$207,4,FALSE)*C:C,"") -> 
B74: =IFERROR(VLOOKUP($A74,البيانات!$C$2:$M$207,11,FALSE),"") ->  | D74: =IFERROR(VLOOKUP($A74,البيانات!$C$2:$M$207,2,FALSE)*C:C,"") ->  | E74: =IFERROR(VLOOKUP($A74,البيانات!$C$2:$M$207,3,FALSE)*C:C,"") ->  | F74: =IFERROR(VLOOKUP($A74,البيانات!$C$2:$M$207,4,FALSE)*C:C,"") -> 
B75: =IFERROR(VLOOKUP($A75,البيانات!$C$2:$M$207,11,FALSE),"") ->  | D75: =IFERROR(VLOOKUP($A75,البيانات!$C$2:$M$207,2,FALSE)*C:C,"") ->  | E75: =IFERROR(VLOOKUP($A75,البيانات!$C$2:$M$207,3,FALSE)*C:C,"") ->  | F75: =IFERROR(VLOOKUP($A75,البيانات!$C$2:$M$207,4,FALSE)*C:C,"") -> 
B76: =IFERROR(VLOOKUP($A76,البيانات!$C$2:$M$207,11,FALSE),"") ->  | D76: =IFERROR(VLOOKUP($A76,البيانات!$C$2:$M$207,2,FALSE)*C:C,"") ->  | E76: =IFERROR(VLOOKUP($A76,البيانات!$C$2:$M$207,3,FALSE)*C:C,"") ->  | F76: =IFERROR(VLOOKUP($A76,البيانات!$C$2:$M$207,4,FALSE)*C:C,"") -> 
B77: =IFERROR(VLOOKUP($A77,البيانات!$C$2:$M$207,11,FALSE),"") ->  | D77: =IFERROR(VLOOKUP($A77,البيانات!$C$2:$M$207,2,FALSE)*C:C,"") ->  | E77: =IFERROR(VLOOKUP($A77,البيانات!$C$2:$M$207,3,FALSE)*C:C,"") ->  | F77: =IFERROR(VLOOKUP($A77,البيانات!$C$2:$M$207,4,FALSE)*C:C,"") -> 
B78: =IFERROR(VLOOKUP($A78,البيانات!$C$2:$M$207,11,FALSE),"") ->  | D78: =IFERROR(VLOOKUP($A78,البيانات!$C$2:$M$207,2,FALSE)*C:C,"") ->  | E78: =IFERROR(VLOOKUP($A78,البيانات!$C$2:$M$207,3,FALSE)*C:C,"") ->  | F78: =IFERROR(VLOOKUP($A78,البيانات!$C$2:$M$207,4,FALSE)*C:C,"") -> 
B79: =IFERROR(VLOOKUP($A79,البيانات!$C$2:$M$207,11,FALSE),"") ->  | D79: =IFERROR(VLOOKUP($A79,البيانات!$C$2:$M$207,2,FALSE)*C:C,"") ->  | E79: =IFERROR(VLOOKUP($A79,البيانات!$C$2:$M$207,3,FALSE)*C:C,"") ->  | F79: =IFERROR(VLOOKUP($A79,البيانات!$C$2:$M$207,4,FALSE)*C:C,"") -> 
B80: =IFERROR(VLOOKUP($A80,البيانات!$C$2:$M$207,11,FALSE),"") ->  | D80: =IFERROR(VLOOKUP($A80,البيانات!$C$2:$M$207,2,FALSE)*C:C,"") ->  | E80: =IFERROR(VLOOKUP($A80,البيانات!$C$2:$M$207,3,FALSE)*C:C,"") ->  | F80: =IFERROR(VLOOKUP($A80,البيانات!$C$2:$M$207,4,FALSE)*C:C,"") -> 
B81: =IFERROR(VLOOKUP($A81,البيانات!$C$2:$M$207,11,FALSE),"") ->  | D81: =IFERROR(VLOOKUP($A81,البيانات!$C$2:$M$207,2,FALSE)*C:C,"") ->  | E81: =IFERROR(VLOOKUP($A81,البيانات!$C$2:$M$207,3,FALSE)*C:C,"") ->  | F81: =IFERROR(VLOOKUP($A81,البيانات!$C$2:$M$207,4,FALSE)*C:C,"") -> 
B82: =IFERROR(VLOOKUP($A82,البيانات!$C$2:$M$207,11,FALSE),"") ->  | D82: =IFERROR(VLOOKUP($A82,البيانات!$C$2:$M$207,2,FALSE)*C:C,"") ->  | E82: =IFERROR(VLOOKUP($A82,البيانات!$C$2:$M$207,3,FALSE)*C:C,"") ->  | F82: =IFERROR(VLOOKUP($A82,البيانات!$C$2:$M$207,4,FALSE)*C:C,"") -> 
B83: =IFERROR(VLOOKUP($A83,البيانات!$C$2:$M$207,11,FALSE),"") ->  | D83: =IFERROR(VLOOKUP($A83,البيانات!$C$2:$M$207,2,FALSE)*C:C,"") ->  | E83: =IFERROR(VLOOKUP($A83,البيانات!$C$2:$M$207,3,FALSE)*C:C,"") ->  | F83: =IFERROR(VLOOKUP($A83,البيانات!$C$2:$M$207,4,FALSE)*C:C,"") -> 
B84: =IFERROR(VLOOKUP($A84,البيانات!$C$2:$M$207,11,FALSE),"") ->  | D84: =IFERROR(VLOOKUP($A84,البيانات!$C$2:$M$207,2,FALSE)*C:C,"") ->  | E84: =IFERROR(VLOOKUP($A84,البيانات!$C$2:$M$207,3,FALSE)*C:C,"") ->  | F84: =IFERROR(VLOOKUP($A84,البيانات!$C$2:$M$207,4,FALSE)*C:C,"") -> 
B85: =IFERROR(VLOOKUP($A85,البيانات!$C$2:$M$207,11,FALSE),"") ->  | D85: =IFERROR(VLOOKUP($A85,البيانات!$C$2:$M$207,2,FALSE)*C:C,"") ->  | E85: =IFERROR(VLOOKUP($A85,البيانات!$C$2:$M$207,3,FALSE)*C:C,"") ->  | F85: =IFERROR(VLOOKUP($A85,البيانات!$C$2:$M$207,4,FALSE)*C:C,"") -> 
B86: =IFERROR(VLOOKUP($A86,البيانات!$C$2:$M$207,11,FALSE),"") ->  | D86: =IFERROR(VLOOKUP($A86,البيانات!$C$2:$M$207,2,FALSE)*C:C,"") ->  | E86: =IFERROR(VLOOKUP($A86,البيانات!$C$2:$M$207,3,FALSE)*C:C,"") ->  | F86: =IFERROR(VLOOKUP($A86,البيانات!$C$2:$M$207,4,FALSE)*C:C,"") -> 
B87: =IFERROR(VLOOKUP($A87,البيانات!$C$2:$M$207,11,FALSE),"") ->  | D87: =IFERROR(VLOOKUP($A87,البيانات!$C$2:$M$207,2,FALSE)*C:C,"") ->  | E87: =IFERROR(VLOOKUP($A87,البيانات!$C$2:$M$207,3,FALSE)*C:C,"") ->  | F87: =IFERROR(VLOOKUP($A87,البيانات!$C$2:$M$207,4,FALSE)*C:C,"") ->  | G87: =IFERROR(C87*B87,"") -> 
B88: =IFERROR(VLOOKUP($A88,البيانات!$C$2:$M$207,11,FALSE),"") ->  | D88: =IFERROR(VLOOKUP($A88,البيانات!$C$2:$M$207,2,FALSE)*C:C,"") ->  | E88: =IFERROR(VLOOKUP($A88,البيانات!$C$2:$M$207,3,FALSE)*C:C,"") ->  | F88: =IFERROR(VLOOKUP($A88,البيانات!$C$2:$M$207,4,FALSE)*C:C,"") -> 
B89: =IFERROR(VLOOKUP($A89,البيانات!$C$2:$M$207,11,FALSE),"") ->  | D89: =IFERROR(VLOOKUP($A89,البيانات!$C$2:$M$207,2,FALSE)*C:C,"") ->  | E89: =IFERROR(VLOOKUP($A89,البيانات!$C$2:$M$207,3,FALSE)*C:C,"") ->  | F89: =IFERROR(VLOOKUP($A89,البيانات!$C$2:$M$207,4,FALSE)*C:C,"") -> 
B90: =IFERROR(VLOOKUP($A90,البيانات!$C$2:$M$207,11,FALSE),"") ->  | D90: =IFERROR(VLOOKUP($A90,البيانات!$C$2:$M$207,2,FALSE)*C:C,"") ->  | E90: =IFERROR(VLOOKUP($A90,البيانات!$C$2:$M$207,3,FALSE)*C:C,"") ->  | F90: =IFERROR(VLOOKUP($A90,البيانات!$C$2:$M$207,4,FALSE)*C:C,"") -> 
B91: =IFERROR(VLOOKUP($A91,البيانات!$C$2:$M$207,11,FALSE),"") ->  | D91: =IFERROR(VLOOKUP($A91,البيانات!$C$2:$M$207,2,FALSE)*C:C,"") ->  | E91: =IFERROR(VLOOKUP($A91,البيانات!$C$2:$M$207,3,FALSE)*C:C,"") ->  | F91: =IFERROR(VLOOKUP($A91,البيانات!$C$2:$M$207,4,FALSE)*C:C,"") -> 
B92: =IFERROR(VLOOKUP($A92,البيانات!$C$2:$M$207,11,FALSE),"") ->  | D92: =IFERROR(VLOOKUP($A92,البيانات!$C$2:$M$207,2,FALSE)*C:C,"") ->  | E92: =IFERROR(VLOOKUP($A92,البيانات!$C$2:$M$207,3,FALSE)*C:C,"") ->  | F92: =IFERROR(VLOOKUP($A92,البيانات!$C$2:$M$207,4,FALSE)*C:C,"") -> 
B93: =IFERROR(VLOOKUP($A93,البيانات!$C$2:$M$207,11,FALSE),"") ->  | D93: =IFERROR(VLOOKUP($A93,البيانات!$C$2:$M$207,2,FALSE)*C:C,"") ->  | E93: =IFERROR(VLOOKUP($A93,البيانات!$C$2:$M$207,3,FALSE)*C:C,"") ->  | F93: =IFERROR(VLOOKUP($A93,البيانات!$C$2:$M$207,4,FALSE)*C:C,"") -> 
B94: =IFERROR(VLOOKUP($A94,البيانات!$C$2:$M$207,11,FALSE),"") ->  | D94: =IFERROR(VLOOKUP($A94,البيانات!$C$2:$M$207,2,FALSE)*C:C,"") ->  | E94: =IFERROR(VLOOKUP($A94,البيانات!$C$2:$M$207,3,FALSE)*C:C,"") ->  | F94: =IFERROR(VLOOKUP($A94,البيانات!$C$2:$M$207,4,FALSE)*C:C,"") -> 
B95: =IFERROR(VLOOKUP($A95,البيانات!$C$2:$M$207,11,FALSE),"") ->  | D95: =IFERROR(VLOOKUP($A95,البيانات!$C$2:$M$207,2,FALSE)*C:C,"") ->  | E95: =IFERROR(VLOOKUP($A95,البيانات!$C$2:$M$207,3,FALSE)*C:C,"") ->  | F95: =IFERROR(VLOOKUP($A95,البيانات!$C$2:$M$207,4,FALSE)*C:C,"") -> 
B96: =IFERROR(VLOOKUP($A96,البيانات!$C$2:$M$207,11,FALSE),"") ->  | D96: =IFERROR(VLOOKUP($A96,البيانات!$C$2:$M$207,2,FALSE)*C:C,"") ->  | E96: =IFERROR(VLOOKUP($A96,البيانات!$C$2:$M$207,3,FALSE)*C:C,"") ->  | F96: =IFERROR(VLOOKUP($A96,البيانات!$C$2:$M$207,4,FALSE)*C:C,"") -> 
B97: =IFERROR(VLOOKUP($A97,البيانات!$C$2:$M$207,11,FALSE),"") ->  | D97: =IFERROR(VLOOKUP($A97,البيانات!$C$2:$M$207,2,FALSE)*C:C,"") ->  | E97: =IFERROR(VLOOKUP($A97,البيانات!$C$2:$M$207,3,FALSE)*C:C,"") ->  | F97: =IFERROR(VLOOKUP($A97,البيانات!$C$2:$M$207,4,FALSE)*C:C,"") -> 
B98: =IFERROR(VLOOKUP($A98,البيانات!$C$2:$M$207,11,FALSE),"") ->  | D98: =IFERROR(VLOOKUP($A98,البيانات!$C$2:$M$207,2,FALSE)*C:C,"") ->  | E98: =IFERROR(VLOOKUP($A98,البيانات!$C$2:$M$207,3,FALSE)*C:C,"") ->  | F98: =IFERROR(VLOOKUP($A98,البيانات!$C$2:$M$207,4,FALSE)*C:C,"") -> 
B99: =IFERROR(VLOOKUP($A99,البيانات!$C$2:$M$207,11,FALSE),"") ->  | D99: =IFERROR(VLOOKUP($A99,البيانات!$C$2:$M$207,2,FALSE)*C:C,"") ->  | E99: =IFERROR(VLOOKUP($A99,البيانات!$C$2:$M$207,3,FALSE)*C:C,"") ->  | F99: =IFERROR(VLOOKUP($A99,البيانات!$C$2:$M$207,4,FALSE)*C:C,"") -> 
B100: =IFERROR(VLOOKUP($A100,البيانات!$C$2:$M$207,11,FALSE),"") ->  | D100: =IFERROR(VLOOKUP($A100,البيانات!$C$2:$M$207,2,FALSE)*C:C,"") ->  | E100: =IFERROR(VLOOKUP($A100,البيانات!$C$2:$M$207,3,FALSE)*C:C,"") ->  | F100: =IFERROR(VLOOKUP($A100,البيانات!$C$2:$M$207,4,FALSE)*C:C,"") -> 
B101: =IFERROR(VLOOKUP($A101,البيانات!$C$2:$M$207,11,FALSE),"") ->  | D101: =IFERROR(VLOOKUP($A101,البيانات!$C$2:$M$207,2,FALSE)*C:C,"") ->  | E101: =IFERROR(VLOOKUP($A101,البيانات!$C$2:$M$207,3,FALSE)*C:C,"") ->  | F101: =IFERROR(VLOOKUP($A101,البيانات!$C$2:$M$207,4,FALSE)*C:C,"") -> 
B102: =IFERROR(VLOOKUP($A102,البيانات!$C$2:$M$207,11,FALSE),"") ->  | D102: =IFERROR(VLOOKUP($A102,البيانات!$C$2:$M$207,2,FALSE)*C:C,"") ->  | E102: =IFERROR(VLOOKUP($A102,البيانات!$C$2:$M$207,3,FALSE)*C:C,"") ->  | F102: =IFERROR(VLOOKUP($A102,البيانات!$C$2:$M$207,4,FALSE)*C:C,"") -> 
B103: =IFERROR(VLOOKUP($A103,البيانات!$C$2:$M$207,11,FALSE),"") ->  | D103: =IFERROR(VLOOKUP($A103,البيانات!$C$2:$M$207,2,FALSE)*C:C,"") ->  | E103: =IFERROR(VLOOKUP($A103,البيانات!$C$2:$M$207,3,FALSE)*C:C,"") ->  | F103: =IFERROR(VLOOKUP($A103,البيانات!$C$2:$M$207,4,FALSE)*C:C,"") -> 
B104: =IFERROR(VLOOKUP($A104,البيانات!$C$2:$M$207,11,FALSE),"") ->  | D104: =IFERROR(VLOOKUP($A104,البيانات!$C$2:$M$207,2,FALSE)*C:C,"") ->  | E104: =IFERROR(VLOOKUP($A104,البيانات!$C$2:$M$207,3,FALSE)*C:C,"") ->  | F104: =IFERROR(VLOOKUP($A104,البيانات!$C$2:$M$207,4,FALSE)*C:C,"") -> 
B105: =IFERROR(VLOOKUP($A105,البيانات!$C$2:$M$207,11,FALSE),"") ->  | D105: =IFERROR(VLOOKUP($A105,البيانات!$C$2:$M$207,2,FALSE)*C:C,"") ->  | E105: =IFERROR(VLOOKUP($A105,البيانات!$C$2:$M$207,3,FALSE)*C:C,"") ->  | F105: =IFERROR(VLOOKUP($A105,البيانات!$C$2:$M$207,4,FALSE)*C:C,"") -> 
B106: =IFERROR(VLOOKUP($A106,البيانات!$C$2:$M$207,11,FALSE),"") ->  | D106: =IFERROR(VLOOKUP($A106,البيانات!$C$2:$M$207,2,FALSE)*C:C,"") ->  | E106: =IFERROR(VLOOKUP($A106,البيانات!$C$2:$M$207,3,FALSE)*C:C,"") ->  | F106: =IFERROR(VLOOKUP($A106,البيانات!$C$2:$M$207,4,FALSE)*C:C,"") -> 
B107: =IFERROR(VLOOKUP($A107,البيانات!$C$2:$M$207,11,FALSE),"") ->  | D107: =IFERROR(VLOOKUP($A107,البيانات!$C$2:$M$207,2,FALSE)*C:C,"") ->  | E107: =IFERROR(VLOOKUP($A107,البيانات!$C$2:$M$207,3,FALSE)*C:C,"") ->  | F107: =IFERROR(VLOOKUP($A107,البيانات!$C$2:$M$207,4,FALSE)*C:C,"") -> 
B108: =IFERROR(VLOOKUP($A108,البيانات!$C$2:$M$207,11,FALSE),"") ->  | D108: =IFERROR(VLOOKUP($A108,البيانات!$C$2:$M$207,2,FALSE)*C:C,"") ->  | E108: =IFERROR(VLOOKUP($A108,البيانات!$C$2:$M$207,3,FALSE)*C:C,"") ->  | F108: =IFERROR(VLOOKUP($A108,البيانات!$C$2:$M$207,4,FALSE)*C:C,"") -> 
B109: =IFERROR(VLOOKUP($A109,البيانات!$C$2:$M$207,11,FALSE),"") ->  | D109: =IFERROR(VLOOKUP($A109,البيانات!$C$2:$M$207,2,FALSE)*C:C,"") ->  | E109: =IFERROR(VLOOKUP($A109,البيانات!$C$2:$M$207,3,FALSE)*C:C,"") ->  | F109: =IFERROR(VLOOKUP($A109,البيانات!$C$2:$M$207,4,FALSE)*C:C,"") -> 
B110: =IFERROR(VLOOKUP($A110,البيانات!$C$2:$M$207,11,FALSE),"") ->  | D110: =IFERROR(VLOOKUP($A110,البيانات!$C$2:$M$207,2,FALSE)*C:C,"") ->  | E110: =IFERROR(VLOOKUP($A110,البيانات!$C$2:$M$207,3,FALSE)*C:C,"") ->  | F110: =IFERROR(VLOOKUP($A110,البيانات!$C$2:$M$207,4,FALSE)*C:C,"") -> 
B111: =IFERROR(VLOOKUP($A111,البيانات!$C$2:$M$207,11,FALSE),"") ->  | D111: =IFERROR(VLOOKUP($A111,البيانات!$C$2:$M$207,2,FALSE)*C:C,"") ->  | E111: =IFERROR(VLOOKUP($A111,البيانات!$C$2:$M$207,3,FALSE)*C:C,"") ->  | F111: =IFERROR(VLOOKUP($A111,البيانات!$C$2:$M$207,4,FALSE)*C:C,"") -> 
B112: =IFERROR(VLOOKUP($A112,البيانات!$C$2:$M$207,11,FALSE),"") ->  | D112: =IFERROR(VLOOKUP($A112,البيانات!$C$2:$M$207,2,FALSE)*C:C,"") ->  | E112: =IFERROR(VLOOKUP($A112,البيانات!$C$2:$M$207,3,FALSE)*C:C,"") ->  | F112: =IFERROR(VLOOKUP($A112,البيانات!$C$2:$M$207,4,FALSE)*C:C,"") -> 
B113: =IFERROR(VLOOKUP($A113,البيانات!$C$2:$M$207,11,FALSE),"") ->  | D113: =IFERROR(VLOOKUP($A113,البيانات!$C$2:$M$207,2,FALSE)*C:C,"") ->  | E113: =IFERROR(VLOOKUP($A113,البيانات!$C$2:$M$207,3,FALSE)*C:C,"") ->  | F113: =IFERROR(VLOOKUP($A113,البيانات!$C$2:$M$207,4,FALSE)*C:C,"") -> 
B114: =IFERROR(VLOOKUP($A114,البيانات!$C$2:$M$207,11,FALSE),"") ->  | D114: =IFERROR(VLOOKUP($A114,البيانات!$C$2:$M$207,2,FALSE)*C:C,"") ->  | E114: =IFERROR(VLOOKUP($A114,البيانات!$C$2:$M$207,3,FALSE)*C:C,"") ->  | F114: =IFERROR(VLOOKUP($A114,البيانات!$C$2:$M$207,4,FALSE)*C:C,"") -> 
B115: =IFERROR(VLOOKUP($A115,البيانات!$C$2:$M$207,11,FALSE),"") ->  | D115: =IFERROR(VLOOKUP($A115,البيانات!$C$2:$M$207,2,FALSE)*C:C,"") ->  | E115: =IFERROR(VLOOKUP($A115,البيانات!$C$2:$M$207,3,FALSE)*C:C,"") ->  | F115: =IFERROR(VLOOKUP($A115,البيانات!$C$2:$M$207,4,FALSE)*C:C,"") -> 
B116: =IFERROR(VLOOKUP($A116,البيانات!$C$2:$M$207,11,FALSE),"") ->  | D116: =IFERROR(VLOOKUP($A116,البيانات!$C$2:$M$207,2,FALSE)*C:C,"") ->  | E116: =IFERROR(VLOOKUP($A116,البيانات!$C$2:$M$207,3,FALSE)*C:C,"") ->  | F116: =IFERROR(VLOOKUP($A116,البيانات!$C$2:$M$207,4,FALSE)*C:C,"") -> 
B117: =IFERROR(VLOOKUP($A117,البيانات!$C$2:$M$207,11,FALSE),"") ->  | D117: =IFERROR(VLOOKUP($A117,البيانات!$C$2:$M$207,2,FALSE)*C:C,"") ->  | E117: =IFERROR(VLOOKUP($A117,البيانات!$C$2:$M$207,3,FALSE)*C:C,"") ->  | F117: =IFERROR(VLOOKUP($A117,البيانات!$C$2:$M$207,4,FALSE)*C:C,"") -> 
B118: =IFERROR(VLOOKUP($A118,البيانات!$C$2:$M$207,11,FALSE),"") ->  | D118: =IFERROR(VLOOKUP($A118,البيانات!$C$2:$M$207,2,FALSE)*C:C,"") ->  | E118: =IFERROR(VLOOKUP($A118,البيانات!$C$2:$M$207,3,FALSE)*C:C,"") ->  | F118: =IFERROR(VLOOKUP($A118,البيانات!$C$2:$M$207,4,FALSE)*C:C,"") -> 
B119: =IFERROR(VLOOKUP($A119,البيانات!$C$2:$M$207,11,FALSE),"") ->  | D119: =IFERROR(VLOOKUP($A119,البيانات!$C$2:$M$207,2,FALSE)*C:C,"") ->  | E119: =IFERROR(VLOOKUP($A119,البيانات!$C$2:$M$207,3,FALSE)*C:C,"") ->  | F119: =IFERROR(VLOOKUP($A119,البيانات!$C$2:$M$207,4,FALSE)*C:C,"") -> 
B120: =IFERROR(VLOOKUP($A120,البيانات!$C$2:$M$207,11,FALSE),"") ->  | D120: =IFERROR(VLOOKUP($A120,البيانات!$C$2:$M$207,2,FALSE)*C:C,"") ->  | E120: =IFERROR(VLOOKUP($A120,البيانات!$C$2:$M$207,3,FALSE)*C:C,"") ->  | F120: =IFERROR(VLOOKUP($A120,البيانات!$C$2:$M$207,4,FALSE)*C:C,"") -> 
B121: =IFERROR(VLOOKUP($A121,البيانات!$C$2:$M$207,11,FALSE),"") ->  | D121: =IFERROR(VLOOKUP($A121,البيانات!$C$2:$M$207,2,FALSE)*C:C,"") ->  | E121: =IFERROR(VLOOKUP($A121,البيانات!$C$2:$M$207,3,FALSE)*C:C,"") ->  | F121: =IFERROR(VLOOKUP($A121,البيانات!$C$2:$M$207,4,FALSE)*C:C,"") -> 
B122: =IFERROR(VLOOKUP($A122,البيانات!$C$2:$M$207,11,FALSE),"") ->  | D122: =IFERROR(VLOOKUP($A122,البيانات!$C$2:$M$207,2,FALSE)*C:C,"") ->  | E122: =IFERROR(VLOOKUP($A122,البيانات!$C$2:$M$207,3,FALSE)*C:C,"") ->  | F122: =IFERROR(VLOOKUP($A122,البيانات!$C$2:$M$207,4,FALSE)*C:C,"") -> 
B123: =IFERROR(VLOOKUP($A123,البيانات!$C$2:$M$207,11,FALSE),"") ->  | D123: =IFERROR(VLOOKUP($A123,البيانات!$C$2:$M$207,2,FALSE)*C:C,"") ->  | E123: =IFERROR(VLOOKUP($A123,البيانات!$C$2:$M$207,3,FALSE)*C:C,"") ->  | F123: =IFERROR(VLOOKUP($A123,البيانات!$C$2:$M$207,4,FALSE)*C:C,"") -> 
B124: =IFERROR(VLOOKUP($A124,البيانات!$C$2:$M$207,11,FALSE),"") ->  | D124: =IFERROR(VLOOKUP($A124,البيانات!$C$2:$M$207,2,FALSE)*C:C,"") ->  | E124: =IFERROR(VLOOKUP($A124,البيانات!$C$2:$M$207,3,FALSE)*C:C,"") ->  | F124: =IFERROR(VLOOKUP($A124,البيانات!$C$2:$M$207,4,FALSE)*C:C,"") -> 
B125: =IFERROR(VLOOKUP($A125,البيانات!$C$2:$M$207,11,FALSE),"") ->  | D125: =IFERROR(VLOOKUP($A125,البيانات!$C$2:$M$207,2,FALSE)*C:C,"") ->  | E125: =IFERROR(VLOOKUP($A125,البيانات!$C$2:$M$207,3,FALSE)*C:C,"") ->  | F125: =IFERROR(VLOOKUP($A125,البيانات!$C$2:$M$207,4,FALSE)*C:C,"") -> 
B126: =IFERROR(VLOOKUP($A126,البيانات!$C$2:$M$207,11,FALSE),"") ->  | D126: =IFERROR(VLOOKUP($A126,البيانات!$C$2:$M$207,2,FALSE)*C:C,"") ->  | E126: =IFERROR(VLOOKUP($A126,البيانات!$C$2:$M$207,3,FALSE)*C:C,"") ->  | F126: =IFERROR(VLOOKUP($A126,البيانات!$C$2:$M$207,4,FALSE)*C:C,"") -> 
B127: =IFERROR(VLOOKUP($A127,البيانات!$C$2:$M$207,11,FALSE),"") ->  | D127: =IFERROR(VLOOKUP($A127,البيانات!$C$2:$M$207,2,FALSE)*C:C,"") ->  | E127: =IFERROR(VLOOKUP($A127,البيانات!$C$2:$M$207,3,FALSE)*C:C,"") ->  | F127: =IFERROR(VLOOKUP($A127,البيانات!$C$2:$M$207,4,FALSE)*C:C,"") -> 
B128: =IFERROR(VLOOKUP($A128,البيانات!$C$2:$M$207,11,FALSE),"") ->  | D128: =IFERROR(VLOOKUP($A128,البيانات!$C$2:$M$207,2,FALSE)*C:C,"") ->  | E128: =IFERROR(VLOOKUP($A128,البيانات!$C$2:$M$207,3,FALSE)*C:C,"") ->  | F128: =IFERROR(VLOOKUP($A128,البيانات!$C$2:$M$207,4,FALSE)*C:C,"") -> 
B129: =IFERROR(VLOOKUP($A129,البيانات!$C$2:$M$207,11,FALSE),"") ->  | D129: =IFERROR(VLOOKUP($A129,البيانات!$C$2:$M$207,2,FALSE)*C:C,"") ->  | E129: =IFERROR(VLOOKUP($A129,البيانات!$C$2:$M$207,3,FALSE)*C:C,"") ->  | F129: =IFERROR(VLOOKUP($A129,البيانات!$C$2:$M$207,4,FALSE)*C:C,"") -> 
B130: =IFERROR(VLOOKUP($A130,البيانات!$C$2:$M$207,11,FALSE),"") ->  | D130: =IFERROR(VLOOKUP($A130,البيانات!$C$2:$M$207,2,FALSE)*C:C,"") ->  | E130: =IFERROR(VLOOKUP($A130,البيانات!$C$2:$M$207,3,FALSE)*C:C,"") ->  | F130: =IFERROR(VLOOKUP($A130,البيانات!$C$2:$M$207,4,FALSE)*C:C,"") -> 
B131: =IFERROR(VLOOKUP($A131,البيانات!$C$2:$M$207,11,FALSE),"") ->  | D131: =IFERROR(VLOOKUP($A131,البيانات!$C$2:$M$207,2,FALSE)*C:C,"") ->  | E131: =IFERROR(VLOOKUP($A131,البيانات!$C$2:$M$207,3,FALSE)*C:C,"") ->  | F131: =IFERROR(VLOOKUP($A131,البيانات!$C$2:$M$207,4,FALSE)*C:C,"") -> 
B132: =IFERROR(VLOOKUP($A132,البيانات!$C$2:$M$207,11,FALSE),"") ->  | D132: =IFERROR(VLOOKUP($A132,البيانات!$C$2:$M$207,2,FALSE)*C:C,"") ->  | E132: =IFERROR(VLOOKUP($A132,البيانات!$C$2:$M$207,3,FALSE)*C:C,"") ->  | F132: =IFERROR(VLOOKUP($A132,البيانات!$C$2:$M$207,4,FALSE)*C:C,"") -> 
B133: =IFERROR(VLOOKUP($A133,البيانات!$C$2:$M$207,11,FALSE),"") ->  | D133: =IFERROR(VLOOKUP($A133,البيانات!$C$2:$M$207,2,FALSE)*C:C,"") ->  | E133: =IFERROR(VLOOKUP($A133,البيانات!$C$2:$M$207,3,FALSE)*C:C,"") ->  | F133: =IFERROR(VLOOKUP($A133,البيانات!$C$2:$M$207,4,FALSE)*C:C,"") -> 
B134: =IFERROR(VLOOKUP($A134,البيانات!$C$2:$M$207,11,FALSE),"") ->  | D134: =IFERROR(VLOOKUP($A134,البيانات!$C$2:$M$207,2,FALSE)*C:C,"") ->  | E134: =IFERROR(VLOOKUP($A134,البيانات!$C$2:$M$207,3,FALSE)*C:C,"") ->  | F134: =IFERROR(VLOOKUP($A134,البيانات!$C$2:$M$207,4,FALSE)*C:C,"") ->  | I134: =IFERROR(H134-G134,"") -> 
B135: =IFERROR(VLOOKUP($A135,البيانات!$C$2:$M$207,11,FALSE),"") ->  | D135: =IFERROR(VLOOKUP($A135,البيانات!$C$2:$M$207,2,FALSE)*C:C,"") ->  | E135: =IFERROR(VLOOKUP($A135,البيانات!$C$2:$M$207,3,FALSE)*C:C,"") ->  | F135: =IFERROR(VLOOKUP($A135,البيانات!$C$2:$M$207,4,FALSE)*C:C,"") -> 
B136: =IFERROR(VLOOKUP($A136,البيانات!$C$2:$M$207,11,FALSE),"") ->  | D136: =IFERROR(VLOOKUP($A136,البيانات!$C$2:$M$207,2,FALSE)*C:C,"") ->  | E136: =IFERROR(VLOOKUP($A136,البيانات!$C$2:$M$207,3,FALSE)*C:C,"") ->  | F136: =IFERROR(VLOOKUP($A136,البيانات!$C$2:$M$207,4,FALSE)*C:C,"") -> 
B137: =IFERROR(VLOOKUP($A137,البيانات!$C$2:$M$207,11,FALSE),"") ->  | D137: =IFERROR(VLOOKUP($A137,البيانات!$C$2:$M$207,2,FALSE)*C:C,"") ->  | E137: =IFERROR(VLOOKUP($A137,البيانات!$C$2:$M$207,3,FALSE)*C:C,"") ->  | F137: =IFERROR(VLOOKUP($A137,البيانات!$C$2:$M$207,4,FALSE)*C:C,"") -> 
B138: =IFERROR(VLOOKUP($A138,البيانات!$C$2:$M$207,11,FALSE),"") ->  | D138: =IFERROR(VLOOKUP($A138,البيانات!$C$2:$M$207,2,FALSE)*C:C,"") ->  | E138: =IFERROR(VLOOKUP($A138,البيانات!$C$2:$M$207,3,FALSE)*C:C,"") ->  | F138: =IFERROR(VLOOKUP($A138,البيانات!$C$2:$M$207,4,FALSE)*C:C,"") -> 
B139: =IFERROR(VLOOKUP($A139,البيانات!$C$2:$M$207,11,FALSE),"") ->  | D139: =IFERROR(VLOOKUP($A139,البيانات!$C$2:$M$207,2,FALSE)*C:C,"") ->  | E139: =IFERROR(VLOOKUP($A139,البيانات!$C$2:$M$207,3,FALSE)*C:C,"") ->  | F139: =IFERROR(VLOOKUP($A139,البيانات!$C$2:$M$207,4,FALSE)*C:C,"") -> 
B140: =IFERROR(VLOOKUP($A140,البيانات!$C$2:$M$207,11,FALSE),"") ->  | D140: =IFERROR(VLOOKUP($A140,البيانات!$C$2:$M$207,2,FALSE)*C:C,"") ->  | E140: =IFERROR(VLOOKUP($A140,البيانات!$C$2:$M$207,3,FALSE)*C:C,"") ->  | F140: =IFERROR(VLOOKUP($A140,البيانات!$C$2:$M$207,4,FALSE)*C:C,"") -> 
B141: =IFERROR(VLOOKUP($A141,البيانات!$C$2:$M$207,11,FALSE),"") ->  | D141: =IFERROR(VLOOKUP($A141,البيانات!$C$2:$M$207,2,FALSE)*C:C,"") ->  | E141: =IFERROR(VLOOKUP($A141,البيانات!$C$2:$M$207,3,FALSE)*C:C,"") ->  | F141: =IFERROR(VLOOKUP($A141,البيانات!$C$2:$M$207,4,FALSE)*C:C,"") -> 
B142: =IFERROR(VLOOKUP($A142,البيانات!$C$2:$M$207,11,FALSE),"") ->  | D142: =IFERROR(VLOOKUP($A142,البيانات!$C$2:$M$207,2,FALSE)*C:C,"") ->  | E142: =IFERROR(VLOOKUP($A142,البيانات!$C$2:$M$207,3,FALSE)*C:C,"") ->  | F142: =IFERROR(VLOOKUP($A142,البيانات!$C$2:$M$207,4,FALSE)*C:C,"") -> 
B143: =IFERROR(VLOOKUP($A143,البيانات!$C$2:$M$207,11,FALSE),"") ->  | D143: =IFERROR(VLOOKUP($A143,البيانات!$C$2:$M$207,2,FALSE)*C:C,"") ->  | E143: =IFERROR(VLOOKUP($A143,البيانات!$C$2:$M$207,3,FALSE)*C:C,"") ->  | F143: =IFERROR(VLOOKUP($A143,البيانات!$C$2:$M$207,4,FALSE)*C:C,"") -> 
B144: =IFERROR(VLOOKUP($A144,البيانات!$C$2:$M$207,11,FALSE),"") ->  | D144: =IFERROR(VLOOKUP($A144,البيانات!$C$2:$M$207,2,FALSE)*C:C,"") ->  | E144: =IFERROR(VLOOKUP($A144,البيانات!$C$2:$M$207,3,FALSE)*C:C,"") ->  | F144: =IFERROR(VLOOKUP($A144,البيانات!$C$2:$M$207,4,FALSE)*C:C,"") -> 
B145: =IFERROR(VLOOKUP($A145,البيانات!$C$2:$M$207,11,FALSE),"") ->  | D145: =IFERROR(VLOOKUP($A145,البيانات!$C$2:$M$207,2,FALSE)*C:C,"") ->  | E145: =IFERROR(VLOOKUP($A145,البيانات!$C$2:$M$207,3,FALSE)*C:C,"") ->  | F145: =IFERROR(VLOOKUP($A145,البيانات!$C$2:$M$207,4,FALSE)*C:C,"") -> 
B146: =IFERROR(VLOOKUP($A146,البيانات!$C$2:$M$207,11,FALSE),"") ->  | D146: =IFERROR(VLOOKUP($A146,البيانات!$C$2:$M$207,2,FALSE)*C:C,"") ->  | E146: =IFERROR(VLOOKUP($A146,البيانات!$C$2:$M$207,3,FALSE)*C:C,"") ->  | F146: =IFERROR(VLOOKUP($A146,البيانات!$C$2:$M$207,4,FALSE)*C:C,"") -> 
B147: =IFERROR(VLOOKUP($A147,البيانات!$C$2:$M$207,11,FALSE),"") ->  | D147: =IFERROR(VLOOKUP($A147,البيانات!$C$2:$M$207,2,FALSE)*C:C,"") ->  | E147: =IFERROR(VLOOKUP($A147,البيانات!$C$2:$M$207,3,FALSE)*C:C,"") ->  | F147: =IFERROR(VLOOKUP($A147,البيانات!$C$2:$M$207,4,FALSE)*C:C,"") -> 
B148: =IFERROR(VLOOKUP($A148,البيانات!$C$2:$M$207,11,FALSE),"") ->  | D148: =IFERROR(VLOOKUP($A148,البيانات!$C$2:$M$207,2,FALSE)*C:C,"") ->  | E148: =IFERROR(VLOOKUP($A148,البيانات!$C$2:$M$207,3,FALSE)*C:C,"") ->  | F148: =IFERROR(VLOOKUP($A148,البيانات!$C$2:$M$207,4,FALSE)*C:C,"") -> 
B149: =IFERROR(VLOOKUP($A149,البيانات!$C$2:$M$207,11,FALSE),"") ->  | D149: =IFERROR(VLOOKUP($A149,البيانات!$C$2:$M$207,2,FALSE)*C:C,"") ->  | E149: =IFERROR(VLOOKUP($A149,البيانات!$C$2:$M$207,3,FALSE)*C:C,"") ->  | F149: =IFERROR(VLOOKUP($A149,البيانات!$C$2:$M$207,4,FALSE)*C:C,"") -> 
B150: =IFERROR(VLOOKUP($A150,البيانات!$C$2:$M$207,11,FALSE),"") ->  | D150: =IFERROR(VLOOKUP($A150,البيانات!$C$2:$M$207,2,FALSE)*C:C,"") ->  | E150: =IFERROR(VLOOKUP($A150,البيانات!$C$2:$M$207,3,FALSE)*C:C,"") ->  | F150: =IFERROR(VLOOKUP($A150,البيانات!$C$2:$M$207,4,FALSE)*C:C,"") -> 
B151: =IFERROR(VLOOKUP($A151,البيانات!$C$2:$M$207,11,FALSE),"") ->  | D151: =IFERROR(VLOOKUP($A151,البيانات!$C$2:$M$207,2,FALSE)*C:C,"") ->  | E151: =IFERROR(VLOOKUP($A151,البيانات!$C$2:$M$207,3,FALSE)*C:C,"") ->  | F151: =IFERROR(VLOOKUP($A151,البيانات!$C$2:$M$207,4,FALSE)*C:C,"") ->  | G151: =IFERROR(C151*B151,"") -> 
B152: =IFERROR(VLOOKUP($A152,البيانات!$C$2:$M$207,11,FALSE),"") ->  | D152: =IFERROR(VLOOKUP($A152,البيانات!$C$2:$M$207,2,FALSE)*C:C,"") ->  | E152: =IFERROR(VLOOKUP($A152,البيانات!$C$2:$M$207,3,FALSE)*C:C,"") ->  | F152: =IFERROR(VLOOKUP($A152,البيانات!$C$2:$M$207,4,FALSE)*C:C,"") -> 
B153: =IFERROR(VLOOKUP($A153,البيانات!$C$2:$M$207,11,FALSE),"") ->  | D153: =IFERROR(VLOOKUP($A153,البيانات!$C$2:$M$207,2,FALSE)*C:C,"") ->  | E153: =IFERROR(VLOOKUP($A153,البيانات!$C$2:$M$207,3,FALSE)*C:C,"") ->  | F153: =IFERROR(VLOOKUP($A153,البيانات!$C$2:$M$207,4,FALSE)*C:C,"") -> 
B154: =IFERROR(VLOOKUP($A154,البيانات!$C$2:$M$207,11,FALSE),"") ->  | D154: =IFERROR(VLOOKUP($A154,البيانات!$C$2:$M$207,2,FALSE)*C:C,"") ->  | E154: =IFERROR(VLOOKUP($A154,البيانات!$C$2:$M$207,3,FALSE)*C:C,"") ->  | F154: =IFERROR(VLOOKUP($A154,البيانات!$C$2:$M$207,4,FALSE)*C:C,"") -> 
B155: =IFERROR(VLOOKUP($A155,البيانات!$C$2:$M$207,11,FALSE),"") ->  | D155: =IFERROR(VLOOKUP($A155,البيانات!$C$2:$M$207,2,FALSE)*C:C,"") ->  | E155: =IFERROR(VLOOKUP($A155,البيانات!$C$2:$M$207,3,FALSE)*C:C,"") ->  | F155: =IFERROR(VLOOKUP($A155,البيانات!$C$2:$M$207,4,FALSE)*C:C,"") -> 
B156: =IFERROR(VLOOKUP($A156,البيانات!$C$2:$M$207,11,FALSE),"") ->  | D156: =IFERROR(VLOOKUP($A156,البيانات!$C$2:$M$207,2,FALSE)*C:C,"") ->  | E156: =IFERROR(VLOOKUP($A156,البيانات!$C$2:$M$207,3,FALSE)*C:C,"") ->  | F156: =IFERROR(VLOOKUP($A156,البيانات!$C$2:$M$207,4,FALSE)*C:C,"") -> 
B157: =IFERROR(VLOOKUP($A157,البيانات!$C$2:$M$207,11,FALSE),"") ->  | D157: =IFERROR(VLOOKUP($A157,البيانات!$C$2:$M$207,2,FALSE)*C:C,"") ->  | E157: =IFERROR(VLOOKUP($A157,البيانات!$C$2:$M$207,3,FALSE)*C:C,"") ->  | F157: =IFERROR(VLOOKUP($A157,البيانات!$C$2:$M$207,4,FALSE)*C:C,"") -> 
B158: =IFERROR(VLOOKUP($A158,البيانات!$C$2:$M$207,11,FALSE),"") ->  | D158: =IFERROR(VLOOKUP($A158,البيانات!$C$2:$M$207,2,FALSE)*C:C,"") ->  | E158: =IFERROR(VLOOKUP($A158,البيانات!$C$2:$M$207,3,FALSE)*C:C,"") ->  | F158: =IFERROR(VLOOKUP($A158,البيانات!$C$2:$M$207,4,FALSE)*C:C,"") -> 
B159: =IFERROR(VLOOKUP($A159,البيانات!$C$2:$M$207,11,FALSE),"") ->  | D159: =IFERROR(VLOOKUP($A159,البيانات!$C$2:$M$207,2,FALSE)*C:C,"") ->  | E159: =IFERROR(VLOOKUP($A159,البيانات!$C$2:$M$207,3,FALSE)*C:C,"") ->  | F159: =IFERROR(VLOOKUP($A159,البيانات!$C$2:$M$207,4,FALSE)*C:C,"") -> 
B160: =IFERROR(VLOOKUP($A160,البيانات!$C$2:$M$207,11,FALSE),"") ->  | D160: =IFERROR(VLOOKUP($A160,البيانات!$C$2:$M$207,2,FALSE)*C:C,"") ->  | E160: =IFERROR(VLOOKUP($A160,البيانات!$C$2:$M$207,3,FALSE)*C:C,"") ->  | F160: =IFERROR(VLOOKUP($A160,البيانات!$C$2:$M$207,4,FALSE)*C:C,"") -> 
B161: =IFERROR(VLOOKUP($A161,البيانات!$C$2:$M$207,11,FALSE),"") ->  | D161: =IFERROR(VLOOKUP($A161,البيانات!$C$2:$M$207,2,FALSE)*C:C,"") ->  | E161: =IFERROR(VLOOKUP($A161,البيانات!$C$2:$M$207,3,FALSE)*C:C,"") ->  | F161: =IFERROR(VLOOKUP($A161,البيانات!$C$2:$M$207,4,FALSE)*C:C,"") -> 
B162: =IFERROR(VLOOKUP($A162,البيانات!$C$2:$M$207,11,FALSE),"") ->  | D162: =IFERROR(VLOOKUP($A162,البيانات!$C$2:$M$207,2,FALSE)*C:C,"") ->  | E162: =IFERROR(VLOOKUP($A162,البيانات!$C$2:$M$207,3,FALSE)*C:C,"") ->  | F162: =IFERROR(VLOOKUP($A162,البيانات!$C$2:$M$207,4,FALSE)*C:C,"") -> 
B163: =IFERROR(VLOOKUP($A163,البيانات!$C$2:$M$207,11,FALSE),"") ->  | D163: =IFERROR(VLOOKUP($A163,البيانات!$C$2:$M$207,2,FALSE)*C:C,"") ->  | E163: =IFERROR(VLOOKUP($A163,البيانات!$C$2:$M$207,3,FALSE)*C:C,"") ->  | F163: =IFERROR(VLOOKUP($A163,البيانات!$C$2:$M$207,4,FALSE)*C:C,"") -> 
B164: =IFERROR(VLOOKUP($A164,البيانات!$C$2:$M$207,11,FALSE),"") ->  | D164: =IFERROR(VLOOKUP($A164,البيانات!$C$2:$M$207,2,FALSE)*C:C,"") ->  | E164: =IFERROR(VLOOKUP($A164,البيانات!$C$2:$M$207,3,FALSE)*C:C,"") ->  | F164: =IFERROR(VLOOKUP($A164,البيانات!$C$2:$M$207,4,FALSE)*C:C,"") -> 
B165: =IFERROR(VLOOKUP($A165,البيانات!$C$2:$M$207,11,FALSE),"") ->  | D165: =IFERROR(VLOOKUP($A165,البيانات!$C$2:$M$207,2,FALSE)*C:C,"") ->  | E165: =IFERROR(VLOOKUP($A165,البيانات!$C$2:$M$207,3,FALSE)*C:C,"") ->  | F165: =IFERROR(VLOOKUP($A165,البيانات!$C$2:$M$207,4,FALSE)*C:C,"") -> 
B166: =IFERROR(VLOOKUP($A166,البيانات!$C$2:$M$207,11,FALSE),"") ->  | D166: =IFERROR(VLOOKUP($A166,البيانات!$C$2:$M$207,2,FALSE)*C:C,"") ->  | E166: =IFERROR(VLOOKUP($A166,البيانات!$C$2:$M$207,3,FALSE)*C:C,"") ->  | F166: =IFERROR(VLOOKUP($A166,البيانات!$C$2:$M$207,4,FALSE)*C:C,"") -> 
B167: =IFERROR(VLOOKUP($A167,البيانات!$C$2:$M$207,11,FALSE),"") ->  | D167: =IFERROR(VLOOKUP($A167,البيانات!$C$2:$M$207,2,FALSE)*C:C,"") ->  | E167: =IFERROR(VLOOKUP($A167,البيانات!$C$2:$M$207,3,FALSE)*C:C,"") ->  | F167: =IFERROR(VLOOKUP($A167,البيانات!$C$2:$M$207,4,FALSE)*C:C,"") -> 
B168: =IFERROR(VLOOKUP($A168,البيانات!$C$2:$M$207,11,FALSE),"") ->  | D168: =IFERROR(VLOOKUP($A168,البيانات!$C$2:$M$207,2,FALSE)*C:C,"") ->  | E168: =IFERROR(VLOOKUP($A168,البيانات!$C$2:$M$207,3,FALSE)*C:C,"") ->  | F168: =IFERROR(VLOOKUP($A168,البيانات!$C$2:$M$207,4,FALSE)*C:C,"") -> 
B169: =IFERROR(VLOOKUP($A169,البيانات!$C$2:$M$207,11,FALSE),"") ->  | D169: =IFERROR(VLOOKUP($A169,البيانات!$C$2:$M$207,2,FALSE)*C:C,"") ->  | E169: =IFERROR(VLOOKUP($A169,البيانات!$C$2:$M$207,3,FALSE)*C:C,"") ->  | F169: =IFERROR(VLOOKUP($A169,البيانات!$C$2:$M$207,4,FALSE)*C:C,"") -> 
B170: =IFERROR(VLOOKUP($A170,البيانات!$C$2:$M$207,11,FALSE),"") ->  | D170: =IFERROR(VLOOKUP($A170,البيانات!$C$2:$M$207,2,FALSE)*C:C,"") ->  | E170: =IFERROR(VLOOKUP($A170,البيانات!$C$2:$M$207,3,FALSE)*C:C,"") ->  | F170: =IFERROR(VLOOKUP($A170,البيانات!$C$2:$M$207,4,FALSE)*C:C,"") -> 
B171: =IFERROR(VLOOKUP($A171,البيانات!$C$2:$M$207,11,FALSE),"") ->  | D171: =IFERROR(VLOOKUP($A171,البيانات!$C$2:$M$207,2,FALSE)*C:C,"") ->  | E171: =IFERROR(VLOOKUP($A171,البيانات!$C$2:$M$207,3,FALSE)*C:C,"") ->  | F171: =IFERROR(VLOOKUP($A171,البيانات!$C$2:$M$207,4,FALSE)*C:C,"") -> 
B172: =IFERROR(VLOOKUP($A172,البيانات!$C$2:$M$207,11,FALSE),"") ->  | D172: =IFERROR(VLOOKUP($A172,البيانات!$C$2:$M$207,2,FALSE)*C:C,"") ->  | E172: =IFERROR(VLOOKUP($A172,البيانات!$C$2:$M$207,3,FALSE)*C:C,"") ->  | F172: =IFERROR(VLOOKUP($A172,البيانات!$C$2:$M$207,4,FALSE)*C:C,"") -> 
B173: =IFERROR(VLOOKUP($A173,البيانات!$C$2:$M$207,11,FALSE),"") ->  | D173: =IFERROR(VLOOKUP($A173,البيانات!$C$2:$M$207,2,FALSE)*C:C,"") ->  | E173: =IFERROR(VLOOKUP($A173,البيانات!$C$2:$M$207,3,FALSE)*C:C,"") ->  | F173: =IFERROR(VLOOKUP($A173,البيانات!$C$2:$M$207,4,FALSE)*C:C,"") -> 
B174: =IFERROR(VLOOKUP($A174,البيانات!$C$2:$M$207,11,FALSE),"") ->  | D174: =IFERROR(VLOOKUP($A174,البيانات!$C$2:$M$207,2,FALSE)*C:C,"") ->  | E174: =IFERROR(VLOOKUP($A174,البيانات!$C$2:$M$207,3,FALSE)*C:C,"") ->  | F174: =IFERROR(VLOOKUP($A174,البيانات!$C$2:$M$207,4,FALSE)*C:C,"") -> 
B175: =IFERROR(VLOOKUP($A175,البيانات!$C$2:$M$207,11,FALSE),"") ->  | D175: =IFERROR(VLOOKUP($A175,البيانات!$C$2:$M$207,2,FALSE)*C:C,"") ->  | E175: =IFERROR(VLOOKUP($A175,البيانات!$C$2:$M$207,3,FALSE)*C:C,"") ->  | F175: =IFERROR(VLOOKUP($A175,البيانات!$C$2:$M$207,4,FALSE)*C:C,"") -> 
B176: =IFERROR(VLOOKUP($A176,البيانات!$C$2:$M$207,11,FALSE),"") ->  | D176: =IFERROR(VLOOKUP($A176,البيانات!$C$2:$M$207,2,FALSE)*C:C,"") ->  | E176: =IFERROR(VLOOKUP($A176,البيانات!$C$2:$M$207,3,FALSE)*C:C,"") ->  | F176: =IFERROR(VLOOKUP($A176,البيانات!$C$2:$M$207,4,FALSE)*C:C,"") -> 
B177: =IFERROR(VLOOKUP($A177,البيانات!$C$2:$M$207,11,FALSE),"") ->  | D177: =IFERROR(VLOOKUP($A177,البيانات!$C$2:$M$207,2,FALSE)*C:C,"") ->  | E177: =IFERROR(VLOOKUP($A177,البيانات!$C$2:$M$207,3,FALSE)*C:C,"") ->  | F177: =IFERROR(VLOOKUP($A177,البيانات!$C$2:$M$207,4,FALSE)*C:C,"") -> 
B178: =IFERROR(VLOOKUP($A178,البيانات!$C$2:$M$207,11,FALSE),"") ->  | D178: =IFERROR(VLOOKUP($A178,البيانات!$C$2:$M$207,2,FALSE)*C:C,"") ->  | E178: =IFERROR(VLOOKUP($A178,البيانات!$C$2:$M$207,3,FALSE)*C:C,"") ->  | F178: =IFERROR(VLOOKUP($A178,البيانات!$C$2:$M$207,4,FALSE)*C:C,"") -> 
B179: =IFERROR(VLOOKUP($A179,البيانات!$C$2:$M$207,11,FALSE),"") ->  | D179: =IFERROR(VLOOKUP($A179,البيانات!$C$2:$M$207,2,FALSE)*C:C,"") ->  | E179: =IFERROR(VLOOKUP($A179,البيانات!$C$2:$M$207,3,FALSE)*C:C,"") ->  | F179: =IFERROR(VLOOKUP($A179,البيانات!$C$2:$M$207,4,FALSE)*C:C,"") -> 
B180: =IFERROR(VLOOKUP($A180,البيانات!$C$2:$M$207,11,FALSE),"") ->  | D180: =IFERROR(VLOOKUP($A180,البيانات!$C$2:$M$207,2,FALSE)*C:C,"") ->  | E180: =IFERROR(VLOOKUP($A180,البيانات!$C$2:$M$207,3,FALSE)*C:C,"") ->  | F180: =IFERROR(VLOOKUP($A180,البيانات!$C$2:$M$207,4,FALSE)*C:C,"") -> 
B181: =IFERROR(VLOOKUP($A181,البيانات!$C$2:$M$207,11,FALSE),"") ->  | D181: =IFERROR(VLOOKUP($A181,البيانات!$C$2:$M$207,2,FALSE)*C:C,"") ->  | E181: =IFERROR(VLOOKUP($A181,البيانات!$C$2:$M$207,3,FALSE)*C:C,"") ->  | F181: =IFERROR(VLOOKUP($A181,البيانات!$C$2:$M$207,4,FALSE)*C:C,"") -> 
B182: =IFERROR(VLOOKUP($A182,البيانات!$C$2:$M$207,11,FALSE),"") ->  | D182: =IFERROR(VLOOKUP($A182,البيانات!$C$2:$M$207,2,FALSE)*C:C,"") ->  | E182: =IFERROR(VLOOKUP($A182,البيانات!$C$2:$M$207,3,FALSE)*C:C,"") ->  | F182: =IFERROR(VLOOKUP($A182,البيانات!$C$2:$M$207,4,FALSE)*C:C,"") -> 
B183: =IFERROR(VLOOKUP($A183,البيانات!$C$2:$M$207,11,FALSE),"") ->  | D183: =IFERROR(VLOOKUP($A183,البيانات!$C$2:$M$207,2,FALSE)*C:C,"") ->  | E183: =IFERROR(VLOOKUP($A183,البيانات!$C$2:$M$207,3,FALSE)*C:C,"") ->  | F183: =IFERROR(VLOOKUP($A183,البيانات!$C$2:$M$207,4,FALSE)*C:C,"") -> 
B184: =IFERROR(VLOOKUP($A184,البيانات!$C$2:$M$207,11,FALSE),"") ->  | D184: =IFERROR(VLOOKUP($A184,البيانات!$C$2:$M$207,2,FALSE)*C:C,"") ->  | E184: =IFERROR(VLOOKUP($A184,البيانات!$C$2:$M$207,3,FALSE)*C:C,"") ->  | F184: =IFERROR(VLOOKUP($A184,البيانات!$C$2:$M$207,4,FALSE)*C:C,"") -> 
B185: =IFERROR(VLOOKUP($A185,البيانات!$C$2:$M$207,11,FALSE),"") ->  | D185: =IFERROR(VLOOKUP($A185,البيانات!$C$2:$M$207,2,FALSE)*C:C,"") ->  | E185: =IFERROR(VLOOKUP($A185,البيانات!$C$2:$M$207,3,FALSE)*C:C,"") ->  | F185: =IFERROR(VLOOKUP($A185,البيانات!$C$2:$M$207,4,FALSE)*C:C,"") -> 
B186: =IFERROR(VLOOKUP($A186,البيانات!$C$2:$M$207,11,FALSE),"") ->  | D186: =IFERROR(VLOOKUP($A186,البيانات!$C$2:$M$207,2,FALSE)*C:C,"") ->  | E186: =IFERROR(VLOOKUP($A186,البيانات!$C$2:$M$207,3,FALSE)*C:C,"") ->  | F186: =IFERROR(VLOOKUP($A186,البيانات!$C$2:$M$207,4,FALSE)*C:C,"") -> 
B187: =IFERROR(VLOOKUP($A187,البيانات!$C$2:$M$207,11,FALSE),"") ->  | D187: =IFERROR(VLOOKUP($A187,البيانات!$C$2:$M$207,2,FALSE)*C:C,"") ->  | E187: =IFERROR(VLOOKUP($A187,البيانات!$C$2:$M$207,3,FALSE)*C:C,"") ->  | F187: =IFERROR(VLOOKUP($A187,البيانات!$C$2:$M$207,4,FALSE)*C:C,"") -> 
B188: =IFERROR(VLOOKUP($A188,البيانات!$C$2:$M$207,11,FALSE),"") ->  | D188: =IFERROR(VLOOKUP($A188,البيانات!$C$2:$M$207,2,FALSE)*C:C,"") ->  | E188: =IFERROR(VLOOKUP($A188,البيانات!$C$2:$M$207,3,FALSE)*C:C,"") ->  | F188: =IFERROR(VLOOKUP($A188,البيانات!$C$2:$M$207,4,FALSE)*C:C,"") -> 
B189: =IFERROR(VLOOKUP($A189,البيانات!$C$2:$M$207,11,FALSE),"") ->  | D189: =IFERROR(VLOOKUP($A189,البيانات!$C$2:$M$207,2,FALSE)*C:C,"") ->  | E189: =IFERROR(VLOOKUP($A189,البيانات!$C$2:$M$207,3,FALSE)*C:C,"") ->  | F189: =IFERROR(VLOOKUP($A189,البيانات!$C$2:$M$207,4,FALSE)*C:C,"") -> 
B190: =IFERROR(VLOOKUP($A190,البيانات!$C$2:$M$207,11,FALSE),"") ->  | D190: =IFERROR(VLOOKUP($A190,البيانات!$C$2:$M$207,2,FALSE)*C:C,"") ->  | E190: =IFERROR(VLOOKUP($A190,البيانات!$C$2:$M$207,3,FALSE)*C:C,"") ->  | F190: =IFERROR(VLOOKUP($A190,البيانات!$C$2:$M$207,4,FALSE)*C:C,"") -> 
B191: =IFERROR(VLOOKUP($A191,البيانات!$C$2:$M$207,11,FALSE),"") ->  | D191: =IFERROR(VLOOKUP($A191,البيانات!$C$2:$M$207,2,FALSE)*C:C,"") ->  | E191: =IFERROR(VLOOKUP($A191,البيانات!$C$2:$M$207,3,FALSE)*C:C,"") ->  | F191: =IFERROR(VLOOKUP($A191,البيانات!$C$2:$M$207,4,FALSE)*C:C,"") -> 
B192: =IFERROR(VLOOKUP($A192,البيانات!$C$2:$M$207,11,FALSE),"") ->  | D192: =IFERROR(VLOOKUP($A192,البيانات!$C$2:$M$207,2,FALSE)*C:C,"") ->  | E192: =IFERROR(VLOOKUP($A192,البيانات!$C$2:$M$207,3,FALSE)*C:C,"") ->  | F192: =IFERROR(VLOOKUP($A192,البيانات!$C$2:$M$207,4,FALSE)*C:C,"") -> 
B193: =IFERROR(VLOOKUP($A193,البيانات!$C$2:$M$207,11,FALSE),"") ->  | D193: =IFERROR(VLOOKUP($A193,البيانات!$C$2:$M$207,2,FALSE)*C:C,"") ->  | E193: =IFERROR(VLOOKUP($A193,البيانات!$C$2:$M$207,3,FALSE)*C:C,"") ->  | F193: =IFERROR(VLOOKUP($A193,البيانات!$C$2:$M$207,4,FALSE)*C:C,"") -> 
B194: =IFERROR(VLOOKUP($A194,البيانات!$C$2:$M$207,11,FALSE),"") ->  | D194: =IFERROR(VLOOKUP($A194,البيانات!$C$2:$M$207,2,FALSE)*C:C,"") ->  | E194: =IFERROR(VLOOKUP($A194,البيانات!$C$2:$M$207,3,FALSE)*C:C,"") ->  | F194: =IFERROR(VLOOKUP($A194,البيانات!$C$2:$M$207,4,FALSE)*C:C,"") -> 
B195: =IFERROR(VLOOKUP($A195,البيانات!$C$2:$M$207,11,FALSE),"") ->  | D195: =IFERROR(VLOOKUP($A195,البيانات!$C$2:$M$207,2,FALSE)*C:C,"") ->  | E195: =IFERROR(VLOOKUP($A195,البيانات!$C$2:$M$207,3,FALSE)*C:C,"") ->  | F195: =IFERROR(VLOOKUP($A195,البيانات!$C$2:$M$207,4,FALSE)*C:C,"") -> 
B196: =IFERROR(VLOOKUP($A196,البيانات!$C$2:$M$207,11,FALSE),"") ->  | D196: =IFERROR(VLOOKUP($A196,البيانات!$C$2:$M$207,2,FALSE)*C:C,"") ->  | E196: =IFERROR(VLOOKUP($A196,البيانات!$C$2:$M$207,3,FALSE)*C:C,"") ->  | F196: =IFERROR(VLOOKUP($A196,البيانات!$C$2:$M$207,4,FALSE)*C:C,"") -> 
B197: =IFERROR(VLOOKUP($A197,البيانات!$C$2:$M$207,11,FALSE),"") ->  | D197: =IFERROR(VLOOKUP($A197,البيانات!$C$2:$M$207,2,FALSE)*C:C,"") ->  | E197: =IFERROR(VLOOKUP($A197,البيانات!$C$2:$M$207,3,FALSE)*C:C,"") ->  | F197: =IFERROR(VLOOKUP($A197,البيانات!$C$2:$M$207,4,FALSE)*C:C,"") -> 
B198: =IFERROR(VLOOKUP($A198,البيانات!$C$2:$M$207,11,FALSE),"") ->  | D198: =IFERROR(VLOOKUP($A198,البيانات!$C$2:$M$207,2,FALSE)*C:C,"") ->  | E198: =IFERROR(VLOOKUP($A198,البيانات!$C$2:$M$207,3,FALSE)*C:C,"") ->  | F198: =IFERROR(VLOOKUP($A198,البيانات!$C$2:$M$207,4,FALSE)*C:C,"") ->  | I198: =IFERROR(H198-G198,"") -> 
B199: =IFERROR(VLOOKUP($A199,البيانات!$C$2:$M$207,11,FALSE),"") ->  | D199: =IFERROR(VLOOKUP($A199,البيانات!$C$2:$M$207,2,FALSE)*C:C,"") ->  | E199: =IFERROR(VLOOKUP($A199,البيانات!$C$2:$M$207,3,FALSE)*C:C,"") ->  | F199: =IFERROR(VLOOKUP($A199,البيانات!$C$2:$M$207,4,FALSE)*C:C,"") -> 
B200: =IFERROR(VLOOKUP($A200,البيانات!$C$2:$M$207,11,FALSE),"") ->  | D200: =IFERROR(VLOOKUP($A200,البيانات!$C$2:$M$207,2,FALSE)*C:C,"") ->  | E200: =IFERROR(VLOOKUP($A200,البيانات!$C$2:$M$207,3,FALSE)*C:C,"") ->  | F200: =IFERROR(VLOOKUP($A200,البيانات!$C$2:$M$207,4,FALSE)*C:C,"") -> 
... 718 more rows

Sheet lists
A1: A2D 45*45*20 | K1: =lists!$A$1:INDEX(lists!$A:$A,MATCH("*",lists!$A:$A,-1),1) -> A2D 45*45*20
A2: A2D 50*45*20
A3: A2D 60*45*20
A4: A2D 70*45*20
A5: A2D 80*45*20
A6: A2D 90*45*20
A7: A3D 45*45*20*15*15
A8: A3D 50*45*20*15*15
A9: A3D 60*45*20*15*15
A10: A3D 70*45*20*15*15
A11: A3D 80*45*20*15*15
A12: A3D 90*45*20*15*15
A13: A4D 45*45*15
A14: A4D 50*45*15
A15: A4D 60*45*15
A16: A4D 70*45*15
A17: A4D 80*45*15
A18: A4D 90*45*15
A19: AB 100 *70*75
A20: AB 100*56*75
A21: AB 15*56*75
A22: AB 20*56*75
A23: AB 25*56*75
A24: AB 30*56*75
A25: AB 35*56*75
A26: AB 40*56*75
A27: AB 45*56*75
A28: AB 50*56*75
A29: AB 60*56*75
A30: AB 70*56*75
A31: AB 75*56*75
A32: AB 80*56*75
A33: AB 90*56*75
A34: ABB 100*56*75
A35: ABB 105*56*75
A36: ABB 120*56*75
A37: ABB 125*56*75
A38: ABB110*56*75
A39: ABC 90*90*56*75
A40: ABM 40*56*75
A41: ABT 100*56*135
A42: ABT 120*56*212
A43: ABT 40*56*115
A44: ABT 40*56*135
A45: ABT 45*56*115
A46: ABT 45*56*135
A47: ABT 50*56*115
A48: ABT 50*56*135
A49: ABT 60*56*115
A50: ABT 60*56*135
A51: ABT 70*56*135
A52: ABT 80*56*135
A53: ABT 90*56*135
A54: ABW 75*33*110
A55: ABW 75*33*50
A56: ABW 75*33*60
A57: ABW 75*33*75
A58: ABW 75*33*90
A59: ABW 75*42*75
A60: ABW 75*42*90
A61: AOB 10*56*75
A62: AOB 60*56*75
A63: AOB 90*56*75
A64: ASB 100*56*75
A65: ASB 113*56*75
A66: ASB 120*53*75
A67: ASB 120*56*75
A68: ASB 40*56*75
A69: ASB 60*56*75
A70: ASB 90*56*75
A71: AT 40*56*212
A72: AT 40*56*228
A73: AT 45*56*212
A74: AT 45*56*228
A75: AT 50*56*200
A76: AT 50*56*212
A77: AT 60*56*212
A78: AT 60*56*228
A79: AT 100*56*175
A80: AT 25*56*214
A81: AT 40*56*175
A82: AT 45*56*175
A83: AT 45*70*240
A84: AT 50*56*175
A85: AT 50*70*240
A86: AT 56*25*214
A87: AT 60*56*175
A88: AT 60*70*240
A89: AT 70*56*175
A90: AT 80*56*175
A91: AT 90*56*175
A92: ATBC 90*90*56*75
A93: ATM 40*56*33*212
A94: ATM 80*56*12*212
A95: ATWC 60*60*33*110
A96: ATWC 60*60*33*75
A97: ATWC 60*60*33*90
A98: ATWC 65*65*33*50
A99: AW 100*33*110
A100: AW 100*33*50
A101: AW 100*33*60
A102: AW 100*33*75
A103: AW 100*33*90
A104: AW 105*42*75
A105: AW 20*33*75
A106: AW 25*33*75
A107: AW 30*33*50
A108: AW 30*33*60
A109: AW 30*33*75
A110: AW 30*33*90
A111: AW 35*33*110
A112: AW 35*33*50
A113: AW 35*33*60
A114: AW 35*33*75
A115: AW 35*33*90
A116: AW 40*33*110
A117: AW 40*33*37.5
A118: AW 40*33*50
A119: AW 40*33*75
A120: AW 40*33*90
A121: AW 45*33*110
A122: AW 45*33*50
A123: AW 45*33*60
A124: AW 45*33*75
A125: AW 45*33*90
A126: AW 50*33*110
A127: AW 50*33*50
A128: AW 50*33*60
A129: AW 50*33*75
A130: AW 50*33*90
A131: AW 60*33*110
A132: AW 60*33*50
A133: AW 60*33*75
A134: AW 60*33*90
A135: AW 70*33*110
A136: AW 70*33*50
A137: AW 70*33*60
A138: AW 70*33*75
A139: AW 70*56*60
A140: AW 75*33*110
A141: AW 75*33*50
A142: AW 75*33*75
A143: AW 75*33*90
A144: AW 80*33*110
A145: AW 80*33*50
A146: AW 80*33*60
A147: AW 80*33*75
A148: AW 80*33*90
A149: AW 90*33*110
A150: AW 90*33*50
A151: AW 90*33*60
A152: AW 90*33*75
A153: AW 90*33*90
A154: AW40*33*60
A155: AW60*33*60
A156: AW75*33*60
A157: AWAR 100*33*35
A158: AWAR 100*42*35
A159: AWAR 100*56*35
A160: AWAR 100*70*62
A161: AWAR 130*33*35
A162: AWAR 60*33*35
A163: AWAR 60*42*35
A164: AWAR 60*56*35
A165: AWAR 70*33*35
A166: AWAR 70*42*35
A167: AWAR 70*56*35
A168: AWAR 75*60*70
A169: AWAR 80*33*35
A170: AWAR 80*56*35
A171: AWAR 90*33*35
A172: AWAR 90*42*35
A173: AWAR 90*42*45
A174: AWAR 90*56*35
A175: AWAR 90*70*35
A176: AWAR80*42*35
A177: AWC 60*60*33*110
A178: AWC 60*60*33*75
A179: AWC 60*60*33*90
A180: AWL42 100*42*110
A181: AWL42 100*42*90
A182: AWL42 30*42*110
A183: AWL42 30*42*90
A184: AWL42 35*42*110
A185: AWL42 35*42*90
A186: AWL42 40*42*75
A187: AWL42 40*42*90
A188: AWL42 45*42*75
A189: AWL42 45*42*90
A190: AWL42 50*42*110
A191: AWL42 50*42*75
A192: AWL42 50*42*90
A193: AWL42 60*42*110
A194: AWL42 60*42*75
A195: AWL42 60*42*90
A196: AWL42 70*42*110
A197: AWL42 70*42*90
A198: AWL42 75*42*110
A199: AWL42 75*42*75
A200: AWL42 75*42*90
... 19 more rows
